Workbook

Sheet Read Me
A1: Air Pollution Control Cost Estimation Spreadsheet
A2: For Wet and Dry Scrubbers for Acid Gas Control
A3: U.S. Environmental Protection Agency
A4: Air Economics Group
A5: Health and Environmental Impacts Division
A6: Office of Air Quality Planning and Standards
A7: (January 2023)
B9: This spreadsheet allows users to estimate the capital and annualized costs for installing and operating scrubbers for reducing sulfur dioxide and acidic gas emissions from fossil fuel-fired combustion units and other industrial sources of acid gases.
B11: The calculation methodologies used in this spreadsheet are those presented in the U.S. EPA's Air Pollution Control Cost Manual. This spreadsheet is intended to be used in combination with the acid gas absorber chapter and cost estimation methodology in the Control Cost Manual. For a detailed description of acid gas absorbers and the cost methodologies, see Section 5, Chapter 1 (Wet and Dry Scrubbers for Acid Gas Control) of the Air Pollution Control Cost Manual (as updated in 2021). A copy of the Control Cost Manual is available on the U.S. EPA's "Technology Transfer Network" website at: https://www.epa.gov/economic-and-cost-analysis-air-pollution-regulations/cost-reports-and-guidance-air-pollution.
B13: This spreadsheet can be used to estimate capital and annualized costs for three types of acid gas scrubbers:
B15: (1) | C15: Wet flue gas desulfurization (WFGD) systems used to control SO2 emissions from coal-fired utility boilers over 100 MW.
B16: (2) | C16: Spray dryer absorber (SDA) used to control SO2 emissions from coal-fired utility boilers of equal to or greater than 50 MW.
B17: (3) | C17: Wet packed-bed scrubbers used to control acid gases from industrial emission sources of any size.
B19: WFGD and SDA Control Systems The methodologies for WFGD and SDA systems are based on those from the U.S. EPA Clean Air Markets Division (CAMD)'s Integrated Planning Model (IPM version 6). The size and costs of a WFGD and SDA are based primarily on the size of the combustion unit and the sulfur content of the coal burned. The WFGD methodology include cost algorithms for capital and operating cost for wastewater treatment consisting of chemical pretreatment, low hydraulic residence time biological reduction and ultrafiltration to treat wastewater generated by the WFGD system. The IPM equations estimate the purchased equipment cost and the direct and indirect installation costs based on cost data for multiple lump-sum contracts. Turnkey contracts where the price is fixed at the time the contract is signed and the contractor undertakes responsibility for the completion of the project, are generally 10 to 15% higher than the multiple lump-sum contracts. For additional information regarding the IPM, see the EPA Clean Air Markets webpage at http://www.epa.gov/airmarkets/power-sector-modeling. Users should complete the Wet & Dry FGD Data Inputs tab to estimate costs for WFGD and SDA systems.
B21: Packed-Bed Scrubbers The cost methodology for wet packed-bed scrubbers can be used for estimating costs for any size of packed tower absorber used to control flue gas containing any acidic pollutants (e.g., HCl and HF). The capital and operating costs are based on the waste gas composition and properties of the pollutant and sorbent. The waste gas is assumed to comprise a two-component waste gas mixture (pollutant/air), where the pollutant consists of a single compound present in dilute quantities. The waste gas is assumed to behave as an ideal gas and the solvent is assumed to behave as an ideal solution. Heat effects associated with absorption are considered to be minimal due to the low pollutant concentration. The procedures also assume that, in chemical absorption, the process is not reaction rate limited, i.e., the reaction of the pollutant with the solvent is considered fast compared to the rate of absorption of the pollutant into the solvent. Users should complete the PB Scrubber Data Inputs tab to estimate costs for packed-bed scrubbers.
B22: The calculations provide study-level estimates (±30%) of capital and annual costs. Default values included in the spreadsheet are taken from the Control Cost Manual and other sources, such as the U.S. Energy Information Administration (EIA), and are included only as an example of how to complete the data inputs sheets. The actual costs may vary from those calculated here due to site-specific conditions. Selection of the most cost-effective control option should be based on a detailed engineering study and cost quotations from control system suppliers.
B24: Instructions
B25: Step 1: Please select the FGD Data Inputs or PB Scrubber Data Inputs tab. Click he Reset Form button at the top of the sheet to reset all parameters to default values.
B26: Step 2: Complete the cells highlighted in yellow. The highlighted cells are pre-populated with example or default values. Users should replace the pre-populated values with current values for each parameter that are specific to the facility. All data entry fields in the PB Scrubber Data Inputs tab should be completed. While most fields in the FGD Data Inputs tab apply to both WFGD and SDA systems, a few data entry fields are specific to the type of control system and may be left blank if the user does not wish to estimate costs for both systems. References documenting the source of each value should be documented in the Data Sources for Default Values Used in Calculations located on the FGD Data Inputs and PB Scrubber Data Inputs tabs.
B27: Step 3: Once all of the data fields are complete, select the SDA Design Parameters, WFGD Design Parameters, or PB Scrubber Design Parameters tab (as applicable) to see the calculated design parameters. Select the SDA Cost Estimate, WFGD Cost Estimate, or PB Scrubber Cost Estimate tabs to view the calculated cost data for the installation and operation of the scrubber.

Sheet Wet & Dry FGD Data Inputs
A1: Data Inputs for Spray Dryer Absorber and Wet FGD
A3: Enter the following data for your combustion unit:
B5: Is the FGD for a new boiler or retrofit of an existing boiler?
R6: Retrofit Box
B7: Please enter a retrofit factor. Enter 1 for projects of average difficulty. Enter values >1 for more difficult retrofits and enter <1 for less difficult retrofits. | G7: 1 | H7: =IF(G7>1, "* NOTE: You must document why a retrofit factor of "&G7&" is appropriate for the proposed project.", " ") -> 
A8: Directions: Enter data in highlighted data fields. | R8: New Construction | S8: 3
R9: Retrofit
B10: What is the gross MW rating at full load capacity (A)? | C10: 500 | D10: MW
A12: Provide the following information for the coal burned:
B13: Select type of coal burned: | R13: Select Coal Type
R14: Bituminous | S14: 2
B15: Enter the sulfur content (%S) | C15: 1.84 | D15: percent by weight | E15: OR | F15: SO2 Emissions (SO2in) | I15: lb/MMBtu | J15: =IF(AND(C15>0,H15>0),"*Note: If you enter values for both sulfur content and SO2 emission rate, the SO2 emission rate in lbs/MMBtu will be used to estimate costs."," ") ->  | R15: Sub-Bituminous
C16: =IF(OR(C15>0,H15>0)," ","*You must enter a value for either percent sulfur content or SO2 emission rate!") ->  | R16: Lignite
B17: Oulet SO2 Emissions (SO2out) | C17: 0.1 | D17: lb/MMBtu | R17: Coal blend
B19: For units burning coal blends: | R19: Landfill? | S19: 2
B20: The table below is pre-populated with default values for HHV and percent sulfur. Please enter the actual values for these parameters in the table below. If the actual value for any parameter is not known, you may use the default values provided.
B21: Coal Blend Composition Table | R21: Onsite Landfill
C22: Fraction in Coal Blend | D22: Percent Sulfur | E22: HHV (Btu/lb) | G22: Calculated sulfur content of coal blend | I22: 0 | J22: percent | R22: Offsite Landfill
B23: Bituminous | C23: 0 | D23: 1.84 | E23: 11841
B24: Sub-Bituminous | C24: 0 | D24: 0.41 | E24: 8826
B25: Lignite | C25: 0 | D25: 0.82 | E25: 6626
B27: Please click the calculate button to calculate weighted values based on the data in the table above. | R27: 2 | S27: Yes
R28: Note: If P25= Yes, then BTF = 0.75 for fluid bed boilers; Else BTF=1 | S28: No
C30: =IF(C17>0," ","*You must enter a value for the outlet SO2 emission rate!") -> 
B32: What is the higher heating value of the fuel (HHV)? | C32: 11841 | D32: Btu/lb | E32: =IF(H15>0,"*Note: You do not need to enter a value for the HHV since you entered SO2 emissions in lb/MMBtu above"," ") -> 
B33: =IF(C32=M23,"*HHV is the weighted average value calculated using the values entered in the coal blend composition table.",(IF(OR(C32=C77,C32=1033,C32=11814,C32=6534,C32=8730,C32=141468),"*HHV value of "&C32&" "&D32&" is a default value. See below for data source. Enter actual HHV for fuel burned, if known. "," "))) -> *HHV value of 11841 Btu/lb is a default value. See below for data source. Enter actual HHV for fuel burned, if known.
B34: What is the estimated actual annual MWh output? | C34: 4000000 | D34: MWh
B36: Waste from a WFDG system disposed in an onsite or offsite landfill?
B38: Gross heat input rate (GHR) | C38: 9.5 | D38: MMBtu/MWh
A42: Enter the following design parameters for the proposed FGD System:
B44: Number of hours the scrubber operates (tABS) | C44: 8000 | D44: Hours | G44: Plant Elevation | I44: 500 | J44: Feet above sea level
B45: Number of hours the boiler operates (tplant) | C45: 8000 | D45: Hours
B46: Number of Full Time Operators (FT):
B47: SDA System | C47: 8
B48: WFGD system | C48: 12
B49: Estimated equipment life:
B50: SDA System | C50: 30 | D50: Years
B51: Wet FGD System | C51: 30 | D51: Years
B52: Estimated equipment life for mercury monitor for wastewater treatment system for Wet FGD Systems | C52: 6 | D52: Years
A54: Enter the cost data for the proposed FGD System:
B56: Desired dollar-year for Capital Costs | C56: 2016
B57: ="CEPCI for " & C56 -> CEPCI for 2016 | C57: 541.7 | D57: =IF(C56=2016," ","Enter the CEPCI value for "&C56) ->  | F57: 541.7 | G57: 2016 CEPCI*
B58: Annual Interest Rate (i) | C58: 3.25 | D58: =IF(C58=3.25, "Percent**", "Percent") -> Percent** | E58: =IF(C58=3.25,"** 3.25 percent is the default bank prime rate. User should enter current bank prime rate (available at https://www.federalreserve.gov/releases/h15/.)"," ") -> ** 3.25 percent is the default bank prime rate. User should enter current bank prime rate (available at https://www.federalreserve.gov/releases/h15/.)
B59: Sorbent Cost:
B60: Lime (for SDA) | C60: 125 | D60: $/ton of Lime
B61: Limestone (for Wet FGD) | C61: 30 | D61: $/ton of Limestone
B62: Water (Costwater) | C62: 0.0042 | D62: ="$/gallon"&(IF(C62=0.00417, "*"," ")) -> $/gallon
B63: Electricity (Costelect) | C63: 0.0361 | D63: ="$/kWh"&(IF(OR(C63=0.0676, C63=0.0361), "*"," ")) -> $/kWh*
B64: Waste Disposal cost (Costwaste) | C64: 30 | D64: ="$/ton"&(IF(C64=48.8, "*","")) -> $/ton
B65: Labor Rate | C65: 60 | D65: $/hour
B66: Purchase Equipment Cost for Mercury Monitor for wastewater treatment System (MMCost) | C66: 100000 | D66: $/monitor
B67: *Note: CEPCI = Chemical Engineering Plant Cost Index. The use of CEPCI in this spreadsheet is not an endorsement of the index, but is there merely to allow for availability of a well-known cost index to spreadsheet users. Use of other well-known cost indexes (e.g., M&S) is acceptable.
A69: Data Sources for Default Values Used in Calculations:
B71: Data Element | C71: Default Value | D71: Sources for Default Value | J71: If you used your own site-specific values, please enter the value used and the reference source . . . | O71: Recommended data sources for site-specific information
B72: Lime ($/ton) | C72: 125 | D72: U.S. Environmental Protection Agency (EPA). Documentation for EPA's Power Sector Modeling Platform v6 Using the Integrated Planning Model. Office of Air and Radiation. January 2017. Available at: https://www.epa.gov/airmarkets/documentation-epas-power-sector-modeling-platform-v6. | O72: Check with reagent vendors for current prices.
B73: Limestone ($/ton) | C73: 30 | D73: U.S. Environmental Protection Agency (EPA). Documentation for EPA's Power Sector Modeling Platform v6 Using the Integrated Planning Model. Office of Air and Radiation. January 2017. Available at: https://www.epa.gov/airmarkets/documentation-epas-power-sector-modeling-platform-v6. | O73: Check with reagent vendors for current prices.
B74: Water Cost ($/gallon) | C74: 0.0042 | D74: Average water rates for industrial facilities (compiled by Black & Veatch. See '50 Largest Cities Water/Wastewater Rate Survey - 2018-2019.'Available at www.bv.com/sites/default/files/2019-10/50_Largest_Cities_Rate_Survey_2018_2019_Report.pdf. | O74: Plant's utility bill or Black & Veatch's "50 Largest Cities Water/Wastewater Rate Survey." Available at http://www.saws.org/who_we_are/community/RAC/docs/2014/50-largest-cities-brochure-water-wastewater-rate-survey.pdf. .
B75: Electricity Cost ($/kWh) | C75: 0.0361 | D75: U.S. Energy Information Administration. Electric Power Annual 2016, Table 8.4, Published December 2017. Available at: https://www.eia.gov/electricity/annual/pdf/epa.pdf | O75: Plant's utility bill or use U.S. Energy Information Administration (EIA) data for most recent year. Available at http://www.eia.gov/electricity/data.cfm#sales.
B76: Waste Disposal Cost ($/ton) | C76: 30 | D76: U.S. Environmental Protection Agency (EPA). Documentation for EPA's Power Sector Modeling Platform v6 Using the Integrated Planning Model. Office of Air and Radiation. January 2017. Available at: https://www.epa.gov/airmarkets/documentation-epas-power-sector-modeling-platform-v6. | O76: Check with reagent vendors for current prices.
B77: Higher Heating Value (HHV) (Btu/lb) | C77: 11841 | D77: Average HHV based 2016 coal data compiled by the Office of Oil, Gas, and Coal Supply Statistics, U.S. Energy Information Administration (EIA) from data reported on EIA Form EIA-923, Power Plant Operations Report. Available at http://www.eia.gov/electricity/data/eia923/. | O77: Fuel supplier or use U.S. Energy Information Administration (EIA) data for most recent year. Available at http://www.eia.gov/electricity/data/eia923/.
B78: Average Sulfur Content (%) | C78: 1.84 | D78: Average sulfur content based on U.S. coal data for 2016 compiled by the U.S. Energy Information Administration (EIA) from data reported on EIA Form EIA-923, Power Plant Operations Report. Available at http://www.eia.gov/electricity/data/eia923/. | O78: Fuel supplier or use U.S. Energy Information Administration (EIA) data for most recent year. Available at http://www.eia.gov/electricity/data/eia923/.
B79: Interest Rate | C79: 3.25 | D79: Default bank prime rate March 2, 2021 (available as the rates listed under 'bank prime loan' at https://www.federalreserve.gov/releases/h15/). | O79: Use current bank prime rate available at https://www.federalreserve.gov/releases/h15/.
B80: Hourly Labor Rate ($/hour) | C80: 60 | D80: U.S. Environmental Protection Agency (EPA). Documentation for EPA's Power Sector Modeling Platform v6 Using the Integrated Planning Model. Office of Air and Radiation. January 2017. Available at: https://www.epa.gov/airmarkets/documentation-epas-power-sector-modeling-platform-v6. | O80: Plant data.

Sheet WFGD Design Parameters
A1: Wet FGD Design Parameters
A3: The following design parameters for the wet FGD system were calculated based on the values entered on the FGD Data Inputs tab. These values were used to prepare the costs shown on the Wet FGD Cost Estimate tab.
A5: Parameter | B5: Equation | C5: Calculated Value | D5: Units
A6: Maximum Annual Heat Input Rate (QB) = | B6: A x GHR = | C6: ='Wet & Dry FGD Data Inputs'!C10*'Wet & Dry FGD Data Inputs'!C38 -> 4750 | D6: MMBtu/hour
A7: Maximum Annual MWh Output (BMW) = | B7: A x 8760 = | C7: ='Wet & Dry FGD Data Inputs'!C10*8760 -> 4380000 | D7: MWh
A8: Estimated Actual Annual MWh Output (Boutput) = | B8: Value entered by user | C8: ='Wet & Dry FGD Data Inputs'!C34 -> 4000000 | D8: MWh
A9: Heat Rate Factor (HRF) = | B9: Gross Plant Heat Rate/10 = | C9: ='Wet & Dry FGD Data Inputs'!C38/10 -> 0.95
A10: Total System Capacity Factor (CFtotal) = | B10: (Boutput/Bmw)*(tABS/tplant) = | C10: =(C8/C7)*('Wet & Dry FGD Data Inputs'!C44/'Wet & Dry FGD Data Inputs'!C45) -> 0.9132420091 | D10: fraction
A11: Total effective operating time for the scrubber (top) = | B11: CFtotal x 8760 = | C11: =C10*8760 -> 8000 | D11: hours
A12: SO2 Removal Efficiency (EF) = | B12: (SO2in - SO2out)/SO2in = | C12: =((C16-'Wet & Dry FGD Data Inputs'!C17)/C16)*100 -> 96.78233696 | D12: percent
A13: SO2 removed per hour = | B13: SO2in x EF x QB = | C13: =(C12/100)*C16*'WFGD Design Parameters'!C6 -> 14287.2667 | D13: lb/hour
A14: Total SO2 removed per year = | B14: (SO2in x EF x QB x top)/2000 = | C14: =C13*C11/2000 -> 57149.0668 | D14: tons/year
A15: Coal Factor (CoalF) = | B15: 1 for bituminous; 1.05 for sub-bituminous; 1.07 for lignite (weighted average is used for coal blends) | C15: =IF('Wet & Dry FGD Data Inputs'!S14=1," ",(IF('Wet & Dry FGD Data Inputs'!S14=2,1,(IF('Wet & Dry FGD Data Inputs'!S14=3,1.05,(IF('Wet & Dry FGD Data Inputs'!S14=4,1.07,L15))))))) -> 1 | L15: =((1*'Wet & Dry FGD Data Inputs'!C23)+(1.05*'Wet & Dry FGD Data Inputs'!C24)+(1.07*'Wet & Dry FGD Data Inputs'!C25))/SUM('Wet & Dry FGD Data Inputs'!C23:C25) -> 
A16: Inlet SO2 Emissions (SO2in) = | B16: =IF('Wet & Dry FGD Data Inputs'!H15>0,"Value entered by user","(Percent Sulfur/100) x (64/32) x 1,000,000)/Heat Input (Btu/Hour) =") -> (Percent Sulfur/100) x (64/32) x 1,000,000)/Heat Input (Btu/Hour) = | C16: =IF(OR('Wet & Dry FGD Data Inputs'!H15=" ",'Wet & Dry FGD Data Inputs'!H15=0),(('Wet & Dry FGD Data Inputs'!C15/100)*(64/32)*1000000)/'Wet & Dry FGD Data Inputs'!C32,'Wet & Dry FGD Data Inputs'!H15) -> 3.107845621 | D16: lb/MMBtu
A17: Elevation Factor (ELEVF) = | B17: 14.7 psia/P = | C17: =IF('Wet & Dry FGD Data Inputs'!I44<500, " ", (14.7/C18)) -> 1.017585235 | E17: =IF('Wet & Dry FGD Data Inputs'!I44<500, "Not applicable; elevation factor does not apply to plants located at elevations below 500 feet.", " ") -> 
A18: =IF('Wet & Dry FGD Data Inputs'!I44=0,"Atmospheric pressure at sea level (P) =","Atmospheric pressure at "&'Wet & Dry FGD Data Inputs'!I44&" feet above sea level (P) =") -> Atmospheric pressure at 500 feet above sea level (P) = | B18: 2116 x [(59-(0.00356xh)+459.7)/518.6]5.256 x (1/144)* = | C18: =(2116)*(((59-(0.00356*'Wet & Dry FGD Data Inputs'!I44)+459.7)/518.6)^5.256)*(1/144) -> 14.44596433 | D18: psia
A19: Retrofit Factor (RF) = | B19: =IF('Wet & Dry FGD Data Inputs'!S8=2,"New Construction",(IF('Wet & Dry FGD Data Inputs'!S8=3,"Retrofit to existing boiler"," "))) -> Retrofit to existing boiler | C19: =IF('Wet & Dry FGD Data Inputs'!S8=2,0.77,(IF('Wet & Dry FGD Data Inputs'!S8=3,'Wet & Dry FGD Data Inputs'!G7," "))) -> 1
A20: * Equation is from the National Aeronautics and Space Administration (NASA), Earth Atmosphere Model. Available at https://spaceflightsystems.grc.nasa.gov/education/rocket/atmos.html.
A22: Capital Recovery Factor:
A24: Parameter | B24: Equation | C24: Calculated Value
A25: Capital Recovery Factor (CRF) = | B25: i (1+ i)n/((1+ i)n - 1) = | C25: =ROUND((('Wet & Dry FGD Data Inputs'!C58/100)*((1+'Wet & Dry FGD Data Inputs'!C58/100)^'Wet & Dry FGD Data Inputs'!C51))/(((1+'Wet & Dry FGD Data Inputs'!C58/100)^'Wet & Dry FGD Data Inputs'!C51)-1),4) -> 0.0527 | D25: Wet FGD System
B26: Where n = Equipment Life and i= Interest Rate
C27: =ROUND((('Wet & Dry FGD Data Inputs'!C58/100)*((1+'Wet & Dry FGD Data Inputs'!C58/100)^'Wet & Dry FGD Data Inputs'!C52))/(((1+'Wet & Dry FGD Data Inputs'!C58/100)^'Wet & Dry FGD Data Inputs'!C52)-1),4) -> 0.1861 | D27: Mercury Monitor for Wastewater Treatment System
A30: Parameter | B30: Equation | C30: Calculated Value | D30: Units
A31: Electricity Usage:
A32: Electricity Consumption (P) = | B32: 0.0112e0.155xS x CoalF x HRF x A x 1,000 = | C32: =0.0112*EXP(0.155*C16)*'WFGD Design Parameters'!C15*'WFGD Design Parameters'!C9*'Wet & Dry FGD Data Inputs'!C10*1000 -> 8612.282436 | D32: kW
A34: Water Usage:
A35: Water consumption (qwater) = | B35: [(1.674 x S + 74.68) x A x CoalF x HRF]/1,000 | C35: =(((1.674*C16)+74.68)*'Wet & Dry FGD Data Inputs'!C10*'WFGD Design Parameters'!C15*'WFGD Design Parameters'!C9)/1000 -> 37.94420345 | D35: kgallons/hour
A37: Limestone Usage:
A38: Limestone consumption rate (QLimestone) = | B38: [17.52 x A x S x HRF]/2,000] x (EF/0.98) = | C38: =((17.52*'Wet & Dry FGD Data Inputs'!C10*C16*'WFGD Design Parameters'!C9)/2000)*('WFGD Design Parameters'!C12/98) -> 12.77106697 | D38: tons/hour
A40: Waste Generation:
A41: Waste generation rate (qwaste) = | B41: [1.811 x QLimestone x (EF/0.98) = | C41: =(1.811*C38*(C12/98)) -> 22.8410288 | D41: tons/hour
A43: Wastewater Flow Rate:
A44: Wastewater flow rate (F) = | B44: A x (0.4 gallons/min/MW) = | C44: ='Wet & Dry FGD Data Inputs'!C10*0.4 -> 200 | D44: gallons/minute

Sheet WFGD Cost Estimate
A1: Wet FGD Cost Estimate
A3: Total Capital Investment (TCI)
A6: TCI = 1.3 x (ABScost + RPEcost + WHECost + BOPcost) + WWTCost
A10: Capital costs for the absorber (ABScost) = | B10: =B22 -> 49763270.95
A11: Reagent Preparation Equipment Costs (RPEcost) = | B11: =B29 -> 23925928.77
A12: Waste Handling Equipment (WHECost) = | B12: =B36 -> 14768988.68
A13: Balance of Plant Costs (BOPcost) = | B13: =B43 -> 91307518.41
A14: Wastewater Treatment Facility Costs (WWTcost) = | B14: =B51 -> 10026942.28
A15: Total Capital Investment (TCI) = | B15: =1.3*(SUM(B10:B14)) -> 246730443.8 | C15: ="in "&'Wet & Dry FGD Data Inputs'!$C$56&" dollars"&(IF('Wet & Dry FGD Data Inputs'!S19=2," with disposal at onsite landfill",IF('Wet & Dry FGD Data Inputs'!S19=3," with disposal at offsite landfill"," "))) -> in 2016 dollars with disposal at onsite landfill
F17: RF | G17: =IF('Wet & Dry FGD Data Inputs'!S8=3,'Wet & Dry FGD Data Inputs'!G7,(IF('Wet & Dry FGD Data Inputs'!S8=2,0.77,0))) -> 1
A18: Wet FGD Capital Costs (ABScost) | F18: ELEVF | G18: =IF('Wet & Dry FGD Data Inputs'!I44<500, 1,'SDA Design Parameters'!C17) -> 1.017585235
F19: CEPCI | G19: ='Wet & Dry FGD Data Inputs'!C57/'Wet & Dry FGD Data Inputs'!F57 -> 1
A20: ABScost = 584,000 x (A)0.716 x (CoalF x HRF)0.6 x (S/2)0.02 x ELEVF x RF
A22: Wet FGD Capital Costs (ABScost) = | B22: =584000*('Wet & Dry FGD Data Inputs'!C10^0.716)*(('WFGD Design Parameters'!C15*'WFGD Design Parameters'!C9)^0.6)*(('WFGD Design Parameters'!C16/2)^0.02)*G18*G17*G19 -> 49763270.95 | C22: ="in "&'Wet & Dry FGD Data Inputs'!$C$56 & " dollars" -> in 2016 dollars
A25: Reagent Preparation Costs (RPEcost)
A27: RPEcost = 202,000 x A0.716 x (S x HRF)0.3 x RF
A29: Reagent Preparation (RPEcost) = | B29: =202000*('Wet & Dry FGD Data Inputs'!C10^0.716)*(('WFGD Design Parameters'!C16*'WFGD Design Parameters'!C9)^0.3)*G17*G19 -> 23925928.77 | C29: ="in "&'Wet & Dry FGD Data Inputs'!$C$56 & " dollars" -> in 2016 dollars
A32: Waste Handling Equipment (WHECost)
A34: WHEcost = 106,000 x A0.716 x (S x HRF)0.45 x RF
A36: Waste Recycling/Handling (WHEcost) = | B36: =106000*('Wet & Dry FGD Data Inputs'!C10^0.716)*(('WFGD Design Parameters'!C16*'WFGD Design Parameters'!C9)^0.45)*G17*G19 -> 14768988.68 | C36: ="in "&'Wet & Dry FGD Data Inputs'!$C$56 & " dollars" -> in 2016 dollars
A39: Balance of Plant Costs (BOPcost)
A41: BOPcost = 1,070,000 x (A)0.716 x (CoalF x HRF)0.4 x ELEVF x RF
A43: Balance of Plant Costs (BOPcost) = | B43: =1070000*('Wet & Dry FGD Data Inputs'!C10^0.716)*(('WFGD Design Parameters'!C15*'WFGD Design Parameters'!C9)^0.4)*G18*G17*G19 -> 91307518.41 | C43: ="in "&'Wet & Dry FGD Data Inputs'!$C$56 & " dollars" -> in 2016 dollars
A45: Wastewater Treatment Facility Costs (WWTcost)
A46: Wastewater Treatment Facility Costs with Onsite Landfill
A47: WWTcost = (41.36 F + 11,157,588) x RF x 0.898
A48: Wastewater Treatement Facility Costs with Offsite Landfill
A49: WWTcost = (41.16 F + 11,557,843) x RF x 0.898
A51: Wastewater Treatment Facility Costs (WWTcost) = | B51: =IF('Wet & Dry FGD Data Inputs'!S19=2,((41.36*'WFGD Design Parameters'!C44)+11157588)*0.898*G17*G19,(IF('Wet & Dry FGD Data Inputs'!S19=3,((41.16*'WFGD Design Parameters'!C44)+11557843)*0.898*G17*G19," "))) -> 10026942.28 | C51: ="in "&'Wet & Dry FGD Data Inputs'!$C$56&" dollars"&(IF('Wet & Dry FGD Data Inputs'!S19=2," with disposal at onsite landfill",IF('Wet & Dry FGD Data Inputs'!S19=3," with disposal at offsite landfill"," "))) -> in 2016 dollars with disposal at onsite landfill
A54: Total Annual Cost (TAC)
A55: TAC = Direct Annual Costs + Indirect Annual Costs
A57: Direct Annual Costs (DAC) = | B57: =C71 -> 17946160.6
A58: Indirect Annual Costs (IDAC) = | B58: =C77 -> 13092033.87
A59: Total annual costs (TAC) = DAC + IDAC | B59: =B57+B58 -> 31038194.47 | C59: ="in "&'Wet & Dry FGD Data Inputs'!$C$56 & " dollars" -> in 2016 dollars
A61: Direct Annual Costs (DAC)
A62: DAC = Annual Maintenance Cost + Annual Operator Cost + Annual Reagent Cost + Annual Make-up Water Cost + Annual Waste Disposal Cost + Annual Auxiliary Power Cost + Annual Wastewater Treatment Cost
A63: Annual Maintenance Cost = | B63: 0.015 x TCI = | C63: =(0.015*B15) -> 3700956.657
A64: Annual Operator Cost = | B64: FT × 2,080 × Hourly Labor Rate | C64: ='Wet & Dry FGD Data Inputs'!C48*2080*'Wet & Dry FGD Data Inputs'!C65 -> 1497600
A65: Annual Reagent Cost = | B65: Qlimestone x CostLimestone x top = | C65: ='Wet & Dry FGD Data Inputs'!C61*'WFGD Design Parameters'!C38*'WFGD Design Parameters'!C11 -> 3065056.073
A66: Annual Electricity Cost = | B66: P x Costelect x top = | C66: ='WFGD Design Parameters'!C32*'Wet & Dry FGD Data Inputs'!C63*'WFGD Design Parameters'!C11 -> 2487227.168
A67: Annual Make-up Water Cost = | B67: qwater x Costwater x top = | C67: ='WFGD Design Parameters'!C35*'Wet & Dry FGD Data Inputs'!C62*'WFGD Design Parameters'!C11*1000 -> 1274925.236
A68: Annual Waste Disposal Cost = | B68: qwaste x Costfuel x top = | C68: ='WFGD Design Parameters'!C41*'Wet & Dry FGD Data Inputs'!C64*'WFGD Design Parameters'!C11 -> 5481846.913
A69: Annual Wastewater Treatment Cost = | B69: =IF('Wet & Dry FGD Data Inputs'!S19=2,"(4.847F + 479,023) x 0.958 x CFtotal =", (IF('Wet & Dry FGD Data Inputs'!S19=3,"(6.3225F + 472,080) x 0.958 x CFtotal x ESC ="))) -> (4.847F + 479,023) x 0.958 x CFtotal = | C69: =IF('Wet & Dry FGD Data Inputs'!S19=2,((4.847*'WFGD Design Parameters'!C44)+479023)*0.958*'WFGD Design Parameters'!C10,(IF('Wet & Dry FGD Data Inputs'!S19=3,(((6.3225*'WFGD Design Parameters'!C44)+472080)*0.958*'WFGD Design Parameters'!C10)," "))) -> 419938.5563 | D69: =IF('Wet & Dry FGD Data Inputs'!S19=1, " ",(IF('Wet & Dry FGD Data Inputs'!S19=2,"(with disposal at onsite landfill)", "(with disposal at offsite landfill)"))) -> (with disposal at onsite landfill)
A70: Replacement Cost for Mercury Monitor = | B70: CFmm x MMCost = | C70: ='WFGD Design Parameters'!C27*'Wet & Dry FGD Data Inputs'!C66 -> 18610 | D70: ="(replaced once every "&'Wet & Dry FGD Data Inputs'!C52&" years.)" -> (replaced once every 6 years.)
A71: Direct Annual Cost = | C71: =SUM(C63:C70) -> 17946160.6 | D71: ="in "&'Wet & Dry FGD Data Inputs'!$C$56 & " dollars" -> in 2016 dollars
A73: Indirect Annual Cost (IDAC)
A74: IDAC = Administrative Charges + Capital Recovery Costs
A75: Administrative Charges (AC) = | B75: 0.03 x (Annual Operator Cost + 0.4(Annual Maintenance Cost)) = | C75: =0.03*(C64+(0.4)*(C63)) -> 89339.47989
A76: Capital Recovery Costs (CR)= | B76: CRF x TCI = | C76: ='WFGD Design Parameters'!C25*B15 -> 13002694.39
A77: Indirect Annual Cost (IDAC) = | B77: AC + CR = | C77: =C75+C76 -> 13092033.87 | D77: ="in "&'Wet & Dry FGD Data Inputs'!$C$56 & " dollars" -> in 2016 dollars
A80: Cost Effectiveness
A82: Cost Effectiveness = Total Annual Cost/ SO2 Removed/year
A83: Total Annual Cost (TAC) = | B83: =B59 -> 31038194.47 | C83: ="per year in "&'Wet & Dry FGD Data Inputs'!$C$56 & " dollars" -> per year in 2016 dollars
A84: SO2 Removed = | B84: ='SDA Design Parameters'!C14 -> 57149.0668 | C84: tons/year
A85: Cost Effectiveness = | B85: =B83/B84 -> 543.1093841 | C85: per ton of SO2 removed in | D85: ='Wet & Dry FGD Data Inputs'!$C$56 & " dollars" -> 2016 dollars

Sheet SDA Design Parameters
A1: Dry FGD Design Parameters
A3: The following design parameters for the dry FGD system were calculated based on the values entered on the FGD Data Inputs tab. These values were used to prepare the costs shown on the Cost Estimate tab.
A5: Parameter | B5: Equation | C5: Calculated Value | D5: Units
A6: Maximum Annual Heat Input Rate (QB) = | B6: A x GHR = | C6: ='Wet & Dry FGD Data Inputs'!C10*'Wet & Dry FGD Data Inputs'!C38 -> 4750 | D6: MMBtu/hour
A7: Maximum Annual MWh Output (BMW) = | B7: A x 8760 = | C7: ='Wet & Dry FGD Data Inputs'!C10*8760 -> 4380000 | D7: MWh
A8: Estimated Actual Annual MWh Output (Boutput) = | B8: Value entered by user | C8: ='Wet & Dry FGD Data Inputs'!C34 -> 4000000 | D8: MWh
A9: Heat Rate Factor (HRF) = | B9: Gross Plant Heat Rate/10 = | C9: ='Wet & Dry FGD Data Inputs'!C38/10 -> 0.95
A10: Total System Capacity Factor (CFtotal) = | B10: (B/Bmw)*(tABS/tplant) = | C10: =(C8/C7)*('Wet & Dry FGD Data Inputs'!C44/'Wet & Dry FGD Data Inputs'!C45) -> 0.9132420091 | D10: fraction
A11: Total effective operating time for the scrubber (top) = | B11: CFtotal x 8760 = | C11: =C10*8760 -> 8000 | D11: hours
A12: SO2 Removal Efficiency (EF) = | B12: (SO2in - SO2out)/SO2in = | C12: =((C16-'Wet & Dry FGD Data Inputs'!C17)/C16)*100 -> 96.78233696 | D12: percent
A13: SO2 removed per hour = | B13: SO2in x EF x QB = | C13: =(C12/100)*C16*'SDA Design Parameters'!C6 -> 14287.2667 | D13: lb/hour
A14: Total SO2 removed per year = | B14: (SO2in x EF x QB x top)/2000 = | C14: =C13*C11/2000 -> 57149.0668 | D14: tons/year
A15: Coal Factor (CoalF) = | B15: 1 for bituminous; 1.05 for sub-bituminous; 1.07 for lignite (weighted average is used for coal blends) | C15: =IF('Wet & Dry FGD Data Inputs'!S14=1," ",(IF('Wet & Dry FGD Data Inputs'!S14=2,1,(IF('Wet & Dry FGD Data Inputs'!S14=3,1.05,(IF('Wet & Dry FGD Data Inputs'!S14=4,1.07,L15))))))) -> 1 | L15: =((1*'Wet & Dry FGD Data Inputs'!C23)+(1.05*'Wet & Dry FGD Data Inputs'!C24)+(1.07*'Wet & Dry FGD Data Inputs'!C25))/SUM('Wet & Dry FGD Data Inputs'!C23:C25) -> 
A16: Inlet SO2 Emissions (SO2in) = | B16: =IF('Wet & Dry FGD Data Inputs'!H15>0,"Value entered by user","(Percent Sulfur/100) x (64/32) x 1,000,000)/Heat Input (Btu/Hour) =") -> (Percent Sulfur/100) x (64/32) x 1,000,000)/Heat Input (Btu/Hour) = | C16: =IF(OR('Wet & Dry FGD Data Inputs'!H15=" ",'Wet & Dry FGD Data Inputs'!H15=0),(('Wet & Dry FGD Data Inputs'!C15/100)*(64/32)*1000000)/'Wet & Dry FGD Data Inputs'!C32,'Wet & Dry FGD Data Inputs'!H15) -> 3.107845621 | D16: lb/MMBtu
A17: Elevation Factor (ELEVF) = | B17: 14.7 psia/P = | C17: =IF('Wet & Dry FGD Data Inputs'!I44<500, " ", (14.7/C18)) -> 1.017585235 | E17: =IF('Wet & Dry FGD Data Inputs'!I44<500, "Not applicable; elevation factor does not apply to plants located at elevations below 500 feet.", " ") -> 
A18: =IF('Wet & Dry FGD Data Inputs'!I44=0,"Atmospheric pressure at sea level (P) =","Atmospheric pressure at "&'Wet & Dry FGD Data Inputs'!I44&" feet above sea level (P) =") -> Atmospheric pressure at 500 feet above sea level (P) = | B18: 2116 x [(59-(0.00356xh)+459.7)/518.6]5.256 x (1/144)* = | C18: =(2116)*(((59-(0.00356*'Wet & Dry FGD Data Inputs'!I44)+459.7)/518.6)^5.256)*(1/144) -> 14.44596433 | D18: psia
A19: Retrofit Factor (RF) = | B19: =IF('Wet & Dry FGD Data Inputs'!S8=2,"New Construction",(IF('Wet & Dry FGD Data Inputs'!S8=3,"Retrofit to existing boiler"," "))) -> Retrofit to existing boiler | C19: =IF('Wet & Dry FGD Data Inputs'!S8=2,0.77,(IF('Wet & Dry FGD Data Inputs'!S8=3,'Wet & Dry FGD Data Inputs'!G7," "))) -> 1
A20: * Equation is from the National Aeronautics and Space Administration (NASA), Earth Atmosphere Model. Available at https://spaceflightsystems.grc.nasa.gov/education/rocket/atmos.html.
A22: Capital Recovery Factor:
A24: Parameter | B24: Equation | C24: Calculated Value
A25: Capital Recovery Factor (CRF) = | B25: i (1+ i)n/((1+ i)n - 1) = | C25: =ROUND((('Wet & Dry FGD Data Inputs'!C58/100)*((1+'Wet & Dry FGD Data Inputs'!C58/100)^'Wet & Dry FGD Data Inputs'!C50))/(((1+'Wet & Dry FGD Data Inputs'!C58/100)^'Wet & Dry FGD Data Inputs'!C50)-1),4) -> 0.0527
B26: Where n = Equipment Life and i= Interest Rate
A28: Waste Generation and Lime, Water and Power Consumption Rates:
A30: Parameter | B30: Equation | C30: Calculated Value | D30: Units
A31: Electricity Usage:
A32: Electricity Consumption (P) = | B32: [(0.000547 x S2) + (0.00649 x S) + 1.3] x CoalF x HRF x (1/100) x A x 1,000 = | C32: =((0.000547*(C16)^2)+(0.00649*C16)+1.3)*'SDA Design Parameters'!C15*'SDA Design Parameters'!C9*(1/100)*'Wet & Dry FGD Data Inputs'!C10*1000 -> 6295.90284 | D32: kW
A34: Water Usage:
A35: Water consumption (qwater) = | B35: [((0.04898 x S2) + (0.5925 x S) + 55.11) x A x CoalF x HRF]/1,000 | C35: =(((0.04898*(C16)^2)+(0.5925*C16)+55.11)*'Wet & Dry FGD Data Inputs'!C10*'SDA Design Parameters'!C15*'SDA Design Parameters'!C9)/1000 -> 27.27662889 | D35: kgallons/hour
A37: Lime Usage:
A38: Lime consumption rate (QLime) = | B38: [[((06702 x S2)+(13.42 x S)) x A x HRF]/2,000] x (EF/0.95) = | C38: =((((0.6702*(C16)^2)+(13.42*C16))*'Wet & Dry FGD Data Inputs'!C10*'SDA Design Parameters'!C9)/2000)*('SDA Design Parameters'!C12/95) -> 11.65756603 | D38: tons/hour
A40: Waste Generation:
A41: Waste generation rate (qwaste) = | B41: [[((0.8016 x S2) + (31.1917 x S)) x A x HRF]/2,000] x EF/0.95 = | C41: =((0.8016*(C16)^2)+(31.1917*C16))*'Wet & Dry FGD Data Inputs'!C10*C9*(1/2000)*(C12/95) -> 25.3282777 | D41: lb/hour

Sheet SDA Cost Estimate
A1: SDA Cost Estimate
A3: Total Capital Investment (TCI)
A6: TCI = 1.3 x (ABScost + BMFcost + BOPcost)
A10: Capital costs for the absorber (ABScost) = | B10: =B24 -> 53667443.74
A11: Reagent Preparation & Waste Recycling/handling (BMFcost) = | B11: =B33 -> 35926576.28
A12: Balance of Plant Costs (BOPcost) = | B12: =B42 -> 76715382.29
A13: Total Capital Investment (TCI) = | B13: =1.3*(SUM(B10:B12)) -> 216202223 | C13: ="in "&'Wet & Dry FGD Data Inputs'!$C$56 & " dollars" -> in 2016 dollars
F15: RF | G15: =IF('Wet & Dry FGD Data Inputs'!S8=3,'Wet & Dry FGD Data Inputs'!G7,(IF('Wet & Dry FGD Data Inputs'!S8=2,0.77,0))) -> 1
A16: SDA Capital Costs (cost) | F16: ELEVF | G16: =IF('Wet & Dry FGD Data Inputs'!I44<500, 1,'SDA Design Parameters'!C17) -> 1.017585235
A17: For Coal-Fired Utility Boilers >600 MW: | F17: CEPCI | G17: ='Wet & Dry FGD Data Inputs'!C57/'Wet & Dry FGD Data Inputs'!F57 -> 1
A18: ABScost = A x 98,000 x ELEVF | F18: ='Wet & Dry FGD Data Inputs'!C10*98000*G16*G17 -> 49861676.5 | G18: =IF('Wet & Dry FGD Data Inputs'!C10>600,"Large Boiler",(IF(OR('Wet & Dry FGD Data Inputs'!C10=600,'Wet & Dry FGD Data Inputs'!C10<600),"Small Boiler"))) -> Small Boiler
A21: For Coal-Fired Utility Boilers 50 and 600 MW :
A22: ABScost = 637,000 x (A)0.716 x (CoalF x HRF)0.6 x (S/4)0.01 x ELEVF x RF | F22: =637000*('Wet & Dry FGD Data Inputs'!C10^0.716)*(('SDA Design Parameters'!C15*'SDA Design Parameters'!C9)^0.6)*(('SDA Design Parameters'!C16/4)^0.01)*G15*G16*G17 -> 53667443.74
A24: SDA Capital Costs (ABScost) = | B24: =IF(G18="Large Boiler",'SDA Cost Estimate'!F18,IF(G18="Small Boiler",'SDA Cost Estimate'!F22)) -> 53667443.74 | C24: ="in "&'Wet & Dry FGD Data Inputs'!$C$56 & " dollars" -> in 2016 dollars
A27: Reagent Preparation and Waste Recycling/Handling Costs (BMFcost)
A28: For Coal-Fired Utility Boilers >600 MW:
A29: BMFcost = A x 52,000 | F29: ='Wet & Dry FGD Data Inputs'!C10*52000*G17 -> 26000000
A30: For Coal-Fired Utility Boilers 50 and 600 MW :
A31: BMFcost = 338,000 x A0.716 x (S x HRF)0.2 x RF | F31: =338000*('Wet & Dry FGD Data Inputs'!C10^0.716)*(('SDA Design Parameters'!C16*'SDA Design Parameters'!C9)^0.2)*'SDA Cost Estimate'!G15*'SDA Cost Estimate'!G17 -> 35926576.28
A33: Reagent Preparation & Waste Recycling/Handling (BMFcost) = | B33: =IF(G18="Large Boiler",'SDA Cost Estimate'!F29,IF(G18="Small Boiler",'SDA Cost Estimate'!F31)) -> 35926576.28 | C33: ="in "&'Wet & Dry FGD Data Inputs'!$C$56 & " dollars" -> in 2016 dollars
A36: Balance of Plant Costs (BOPcost)
A37: For Coal-Fired Utility Boilers >600 MW:
A38: BOPcost = 138,000 x A x ELEVF | F38: =138000*'Wet & Dry FGD Data Inputs'!C10*'SDA Cost Estimate'!G16*'SDA Cost Estimate'!G17 -> 70213381.19
A39: For Coal-Fired Utility Boilers betwee 50 and 600 MW :
A40: BOPcost = 899,000 x (A)0.716 x (CoalF x HRF)0.4 x ELEVF x RF | F40: =(899000)*('Wet & Dry FGD Data Inputs'!C10^0.716)*(('SDA Design Parameters'!C15*'SDA Design Parameters'!C9)^0.4*G16*G15*G17) -> 76715382.29
A42: Balance of Plant Costs (BOPcost) = | B42: =IF(G18="Large Boiler",'SDA Cost Estimate'!F38,IF(G18="Small Boiler",'SDA Cost Estimate'!F40)) -> 76715382.29 | C42: ="in "&'Wet & Dry FGD Data Inputs'!$C$56 & " dollars" -> in 2016 dollars
A45: Annual Costs
A47: Total Annual Cost (TAC)
A48: TAC = Direct Annual Costs + Indirect Annual Costs
A50: Direct Annual Costs (DAC) = | B50: =C62 -> 24712537.49
A51: Indirect Annual Costs (IDAC) = | B51: =C68 -> 11462725.55
A52: Total annual costs (TAC) = DAC + IDAC | B52: =B50+B51 -> 36175263.05 | C52: ="in "&'Wet & Dry FGD Data Inputs'!$C$56 & " dollars" -> in 2016 dollars
A54: Direct Annual Costs (DAC)
A55: DAC = (Annual Maintenance Cost) + (Annual Operator Cost) +(Annual Reagent Cost) + (Annual Make-up Water Cost) + (Annual Waste Disposal Cost) + (Annual Auxiliary Power Cost)
A56: Annual Maintenance Cost = | B56: 0.015 x TCI = | C56: =(0.015*B13) -> 3243033.345
A57: Annual Operator Cost = | B57: FT × 2,080 × Hourly Labor Rate | C57: ='Wet & Dry FGD Data Inputs'!C47*2080*'Wet & Dry FGD Data Inputs'!C65 -> 998400
A58: Annual Reagent Cost = | B58: Qlime x Costreag x top = | C58: ='Wet & Dry FGD Data Inputs'!C60*'SDA Design Parameters'!C38*'SDA Design Parameters'!C11 -> 11657566.03
A59: Annual Electricity Cost = | B59: P x Costelect x top = | C59: ='SDA Design Parameters'!C32*'Wet & Dry FGD Data Inputs'!C63*'SDA Design Parameters'!C11 -> 1818256.74
A60: Annual Make-up Water Cost = | B60: qwater x Costwater x top = | C60: ='SDA Design Parameters'!C35*'Wet & Dry FGD Data Inputs'!C62*'SDA Design Parameters'!C11*1000 -> 916494.7307
A61: Annual Waste Disposal Cost = | B61: qwaste x Costfuel x top = | C61: ='SDA Design Parameters'!C41*'Wet & Dry FGD Data Inputs'!C64*'SDA Design Parameters'!C11 -> 6078786.648
A62: Direct Annual Cost = | C62: =SUM(C56:C61) -> 24712537.49 | D62: ="in "&'Wet & Dry FGD Data Inputs'!$C$56 & " dollars" -> in 2016 dollars
A64: Indirect Annual Cost (IDAC)
A65: IDAC = Administrative Charges + Capital Recovery Costs
A66: Administrative Charges (AC) = | B66: 0.03 x (Annual Operator Cost + 0.4(Annual Maintenance Cost)) = | C66: =0.03*(C57+(0.4)*(C56)) -> 68868.40014
A67: Capital Recovery Costs (CR)= | B67: CRF x TCI = | C67: ='SDA Design Parameters'!C25*B13 -> 11393857.15
A68: Indirect Annual Cost (IDAC) = | B68: AC + CR = | C68: =C66+C67 -> 11462725.55 | D68: ="in "&'Wet & Dry FGD Data Inputs'!$C$56 & " dollars" -> in 2016 dollars
A71: Cost Effectiveness
A73: Cost Effectiveness = Total Annual Cost/ SO2 Removed/year
A74: Total Annual Cost (TAC) = | B74: =B52 -> 36175263.05 | C74: ="per year in "&'Wet & Dry FGD Data Inputs'!$C$56 & " dollars" -> per year in 2016 dollars
A75: SO2 Removed = | B75: ='SDA Design Parameters'!C14 -> 57149.0668 | C75: tons/year
A76: Cost Effectiveness = | B76: =B74/B75 -> 632.998316 | C76: per ton of SO2 removed in | D76: ='Wet & Dry FGD Data Inputs'!$C$56 & " dollars" -> 2016 dollars

Sheet PB Scrubber Data Inputs
A1: Data Inputs for Packed Bed Scrubber
A3: Waste Stream Characteristics:
A4: Directions: Enter data in highlighted cells.
B6: Pollutant name | C6: HCl | F6: Name of Solvent | H6: water
B7: Concentration of pollutant in waste gas (C) | C7: 1871 | D7: ppmv
B8: Waste Gas Flow rate (Gin) | C8: 22288 | D8: acfm
B9: Temperature (T) | C9: 100 | D9: oF
B10: Density of waste gas (ρG) | C10: 0.0709 | D10: lb/ft3
B11: Density of liquid (ρL) | C11: 62.4 | D11: lb/ft3
B12: Molecular weight for pollutant (MWp) | C12: 36.5 | D12: lb/lb-mole
B13: Molecular weight of waste gas (MWG) | C13: 29 | D13: lb/lb-mole
B14: Molecular weight of Liquid (MWL) | C14: 18 | D14: lb/lb-mole
B15: Viscosity of waste gas (μG) | C15: 0.044 | D15: lb/ft-hour
B16: Viscosity of liquid (μL) | C16: 2.16 | D16: lb/ft-hour
B17: Minimum wetting rate (MWR) | C17: 1.3 | D17: sq.ft/hour
B18: Diffusivity of pollutant in air (DG) | C18: 0.725 | D18: sq.ft/hour
B19: Diffusivity of pollutant in solvent (DL) | C19: 0.000102 | D19: sq.ft/hour | F19: * See Appendix tab for diffusity values for some common pollutants.
B20: Maximum pollutant concentration in liquid phase in equilibrium with pollutant entering column in gas phase (Xout*) | C20: 0.16 | D20: lb-moles of pollutant/lb-mole of pollutant free solvent
B21: Pollutant concentration exiting the absorber in equilibrium with concentration in liquid phase (Yout*) | C21: 0.0001 | D21: lb-moles of pollutant/lb-moles of total gas
A24: Packed Bed Scrubber Specifications:
B26: Sorbent Name | C26: Sodium hydroxide
B27: Number of moles of sorbent needed to neutralize 1 mole of pollutant | C27: 0.5
B28: Name of waste species produced | C28: sodium chloride
B29: ="Number of moles of "&C28&" (waste) generated per mole of "&C6&" removed" -> Number of moles of sodium chloride (waste) generated per mole of HCl removed | C29: 1
B30: ="Percent by weight of "&C28&" in wastewater (WF)" -> Percent by weight of sodium chloride in wastewater (WF) | C30: 10 | D30: percent by weight
B31: Molecular weight of Sorbent (MWs) | C31: 39.97 | D31: lb/lb-mole
B32: Molecular weight of waste produced (MWw) | C32: 58.5 | D32: lb/lb-mole
B33: Pollutant Removal Efficiency (η) | C33: 99 | D33: percent
B34: Number of hours the scrubber operates (top) | C34: 8000 | D34: Hours
B35: Pump Efficiency (ε) | C35: 70 | D35: percent
B36: Estimated Equipment Life | C36: 30 | D36: Years
B37: L/G adjustment factor to convert (L/G)min to (L/G)actual | C37: 1.5 | D37: * Typically between 1.2 and 1.5
B38: Flooding factor (f) | C38: 0.7 | D38: * Typically between 0.6 and 0.75
B39: Pressure for the solvent pump (Ppump) | C39: 60 | D39: feet of water
B40: Impeller diameter for fan (d) = | C40: 33 | D40: inches
B42: Packing Material Properties*
B43: Packing type | C43: 2-inch ceramic Raschig rings
B44: Packing factor (Fp) | C44: 65
B45: Packing constant (α) | C45: 3.82 | E45: * See Appendix tab for constants for common packing materials.
B46: Packing constant (β) | C46: 0.41
B47: Packing constant (γ) | C47: 0.45
B48: Packing constant (φ) | C48: 0.0125
B49: Packing constant (b) | C49: 0.22
B50: Surface area to volume ratio | C50: 28 | D50: ft2/ft3
B51: Packing constant c | C51: 0.24
B52: Packing constant j | C52: 0.17
B54: Select material for construction of absorber | R54: Select Material | S54: 1
R55: Fiberglass Reinforced Plastic
B56: Site Preparation Cost = | C56: 0 | R56: 304 Stainless Steel
B57: Building Costs = | C57: 0 | R57: Polypropylene
A58: Enter the following design parameters for the proposed packed bed scrubber: | B58: Contingency Factor (CF) = | C58: 0.1 | D58: =IF(C58=0.1,"* Note: 0.1 is a default value. Values of between 0.05 and 0.15 may be used to account for unexpected costs associated with the fabrication and installation of the control system."," ") -> * Note: 0.1 is a default value. Values of between 0.05 and 0.15 may be used to account for unexpected costs associated with the fabrication and installation of the control system. | R58: Polyvinylchloride
A61: Cost Information:
B63: Desired dollar-year | C63: 2016
B64: ="CEPCI for " & C63 -> CEPCI for 2016 | C64: 541.7 | D64: ="Enter the CEPCI value for "&C63 -> Enter the CEPCI value for 2016 | F64: 390.6 | G64: 1991 CEPCI*
B65: *Note: CEPCI = Chemical Engineering Plant Cost Index. The use of CEPCI in this spreadsheet is not an endorsement of the index, but is there merely to allow for availability of a well-known cost index to spreadsheet users. Use of other well-known cost indexes (e.g., M&S) is acceptable.
B67: Annual Interest Rate (i) | C67: 3.25 | D67: =IF(C67=3.25, "Percent*", "Percent") -> Percent* | E67: =IF(C67=3.25,"* 3.25 percent is the default bank prime rate. User should enter current bank prime rate (available at https://www.federalreserve.gov/releases/h15/.)"," ") -> * 3.25 percent is the default bank prime rate. User should enter current bank prime rate (available at https://www.federalreserve.gov/releases/h15/.)
B69: Packing Material Cost (Costpacking) | C69: 20 | D69: $/ft3
B70: Sorbent (Costsorbent) | C70: 447 | D70: $/ton
B71: Solvent (CostSolvent) | C71: 0.0042 | D71: ="$/gallon"&(IF(C71=0.0042, "*"," ")) -> $/gallon*
B72: Electricity (Costelect) | C72: 0.0676 | D72: ="$/kWh"&(IF(OR(C72=0.0676, C72=0.0674), "*"," ")) -> $/kWh*
B73: Waste Disposal cost (Costwaste) | C73: 0.0057 | D73: ="$/gallon"&(IF(C73=0.0057, "*","")) -> $/gallon*
B74: Operator Labor Rate | C74: 26.61 | D74: $/hour
B75: Maintenance Labor Rate | C75: 29.27 | D75: $/hour
A78: Data Sources for Default Values Used in Calculations:
B80: Data Element | C80: Default Value | D80: Sources for Default Value | J80: If you used your own site-specific values, please enter the value used and the reference source . . . | O80: Recommended data sources for site-specific information
B81: =C26&" cost ($/ton)" -> Sodium hydroxide cost ($/ton) | C81: 447 | D81: Price of caustic soda based on July 2016 data reported in Outlook '17: The Calm Before the Storm for European Caustic Soda, ICIS, January 11, 2017 (available at https://www.icis.com/explore/resources/news/2017/01/11/10064199/outlook-17-the-calm-before-the-storm-for-european-caustic-soda/). Value shown is based on $340 per ton of sodium oxide in a 76% sodium oxide/water solution. | O81: Check with reagent vendors for current prices.
B82: Packing material cost ($/ft3) | C82: 20 | D82: Section 5, Chapter 1 (Wet and Dry Scrubbers for Acid Gas Control), Table 1.7. | O82: Check with reagent vendors for current prices.
B83: ="Solvent ("&H6&") cost ($/gallon)" -> Solvent (water) cost ($/gallon) | C83: 0.0042 | D83: Average water rates for industrial facilities (compiled by Black & Veatch). See '50 Largest Cities Water/Wastewater Rate Survey - 2018-2019.'Available at www.bv.com/sites/default/files/2019-10/50_Largest_Cities_Rate_Survey_2018_2019_Report.pdf. | O83: Plant's utility bill or Black & Veatch's "50 Largest Cities Water/Wastewater Rate Survey." Available at http://www.saws.org/who_we_are/community/RAC/docs/2014/50-largest-cities-brochure-water-wastewater-rate-survey.pdf. .
B84: Electricity Cost ($/kWh) | C84: 0.0676 | D84: U.S. Energy Information Administration. Electric Power Annual 2016. Table 2.10. Published December 2017. Available at: https://www.eia.gov/electricity/annual/pdf/epa.pdf. | O84: Plant's utility bill or use U.S. Energy Information Administration (EIA) data for most recent year. Available at http://www.eia.gov/electricity/data.cfm#sales.
B85: Waste Disposal Cost ($/gallon) | C85: 0.0057 | D85: Average water rates for industrial facilities in 2016 compiled by Black & Veatch. See '50 Largest Cities Water/Wastewater Rate Survey - 2018-2019.' Available at https://www.bv.com/sites/default/files/2019-10/50_Largest_Cities_Rate_Survey_2018_2019_Report.pdf. | O85: Plant's utility bill or Black & Veatch's "50 Largest Cities Water/Wastewater Rate Survey." Available at http://www.saws.org/who_we_are/community/RAC/docs/2014/50-largest-cities-brochure-water-wastewater-rate-survey.pdf. .
B86: Interest Rate | C86: 3.25 | D86: Default bank prime rate March 2, 2021 (available as the rates listed under 'bank prime loan' at https://www.federalreserve.gov/releases/h15/). | O86: Use current bank prime rate available at https://www.federalreserve.gov/releases/h15/.
B87: Operator Labor Rate | C87: 26.61 | D87: Bureau of Labor Statistics, May 2016 National Occupational Employment and Wage Estimates - United States, May 2016 (https://www.bls.gov/oes/2016/may/oes_nat.htm). Hourly rates for operators based on data for Plant and System Operators - other (51-8099). | O87: Plant data.
B88: Maintenance Labor Rate | C88: 29.27 | D88: Maintenance labor rate is estimated at 110% of the operator wage rate. | O88: Plant data.

Sheet PB Scrubber Design Parameters
A1: Packed Bed Scrubber Design Parameters | U1: Abscissa (Eq 73) | W1: Ordinate (Eq74) | X1: Ordinate (Eq75) | Z1: A | AA1: (Lmol,i) | AB1: Gsfr
U2: =(AA2/'PB Scrubber Design Parameters'!$C$14)*('PB Scrubber Data Inputs'!$C$14/'PB Scrubber Data Inputs'!$C$13)*(('PB Scrubber Data Inputs'!$C$10/'PB Scrubber Data Inputs'!$C$11)^0.5) -> 0.04530535779 | W2: =ROUND(((AB2^2)*'PB Scrubber Data Inputs'!$C$44*'PB Scrubber Design Parameters'!$C$27*('PB Scrubber Data Inputs'!$C$16/2.42)^0.2)/('PB Scrubber Data Inputs'!$C$11*'PB Scrubber Data Inputs'!$C$10*32.2),3) -> 0.201 | X2: =ROUND(10^(-1.668-(1.085*LOG10(U2))-(0.297*(LOG10(U2)^2))),3) -> 0.179 | Y2: =ABS(W2-X2) -> 0.022 | Z2: =ROUNDUP('PB Scrubber Design Parameters'!C29,0) -> 56 | AA2: =('PB Scrubber Design Parameters'!$C$31*(1/'PB Scrubber Data Inputs'!$C$14))*Z2 -> 7066.453333 | AB2: =(('PB Scrubber Design Parameters'!$C$14*'PB Scrubber Data Inputs'!$C$13)/(3600*'PB Scrubber Data Inputs'!$C$38))/Z2 -> 0.6706048511
A3: The following design parameters for a packed bed scrubber were calculated based on the values entered on the PB Scrubber Data Inputs tab. These values were used to prepare the costs shown on the PB Scrubber Cost Estimate tab. | U3: =(AA3/'PB Scrubber Design Parameters'!$C$14)*('PB Scrubber Data Inputs'!$C$14/'PB Scrubber Data Inputs'!$C$13)*(('PB Scrubber Data Inputs'!$C$10/'PB Scrubber Data Inputs'!$C$11)^0.5) -> 0.04570986991 | W3: =ROUND(((AB3^2)*'PB Scrubber Data Inputs'!$C$44*'PB Scrubber Design Parameters'!$C$27*('PB Scrubber Data Inputs'!$C$16/2.42)^0.2)/('PB Scrubber Data Inputs'!$C$11*'PB Scrubber Data Inputs'!$C$10*32.2),3) -> 0.197 | X3: 0.179 | Y3: 0.018 | Z3: =Z2+0.5 -> 56.5 | AA3: =('PB Scrubber Design Parameters'!$C$31*(1/'PB Scrubber Data Inputs'!$C$14))*Z3 -> 7129.546667 | AB3: =(('PB Scrubber Design Parameters'!$C$14*'PB Scrubber Data Inputs'!$C$13)/(3600*'PB Scrubber Data Inputs'!$C$38))/Z3 -> 0.6646702949
U4: =(AA4/'PB Scrubber Design Parameters'!$C$14)*('PB Scrubber Data Inputs'!$C$14/'PB Scrubber Data Inputs'!$C$13)*(('PB Scrubber Data Inputs'!$C$10/'PB Scrubber Data Inputs'!$C$11)^0.5) -> 0.04611438204 | W4: =ROUND(((AB4^2)*'PB Scrubber Data Inputs'!$C$44*'PB Scrubber Design Parameters'!$C$27*('PB Scrubber Data Inputs'!$C$16/2.42)^0.2)/('PB Scrubber Data Inputs'!$C$11*'PB Scrubber Data Inputs'!$C$10*32.2),3) -> 0.194 | X4: 0.178 | Y4: 0.016 | Z4: 57 | AA4: =('PB Scrubber Design Parameters'!$C$31*(1/'PB Scrubber Data Inputs'!$C$14))*Z4 -> 7192.64 | AB4: =(('PB Scrubber Design Parameters'!$C$14*'PB Scrubber Data Inputs'!$C$13)/(3600*'PB Scrubber Data Inputs'!$C$38))/Z4 -> 0.6588398537
A5: Parameter | B5: Equation | C5: Calculated Value | D5: Units | U5: =(AA5/'PB Scrubber Design Parameters'!$C$14)*('PB Scrubber Data Inputs'!$C$14/'PB Scrubber Data Inputs'!$C$13)*(('PB Scrubber Data Inputs'!$C$10/'PB Scrubber Data Inputs'!$C$11)^0.5) -> 0.04651889416 | W5: =ROUND(((AB5^2)*'PB Scrubber Data Inputs'!$C$44*'PB Scrubber Design Parameters'!$C$27*('PB Scrubber Data Inputs'!$C$16/2.42)^0.2)/('PB Scrubber Data Inputs'!$C$11*'PB Scrubber Data Inputs'!$C$10*32.2),3) -> 0.19 | X5: 0.178 | Y5: 0.012 | Z5: 57.5 | AA5: =('PB Scrubber Design Parameters'!$C$31*(1/'PB Scrubber Data Inputs'!$C$14))*Z5 -> 7255.733333 | AB5: =(('PB Scrubber Design Parameters'!$C$14*'PB Scrubber Data Inputs'!$C$13)/(3600*'PB Scrubber Data Inputs'!$C$38))/Z5 -> 0.6531108115
A6: ="Concentration of "&'PB Scrubber Data Inputs'!C6&" entering absorber (Yin) =" -> Concentration of HCl entering absorber (Yin) = | B6: (C/106)/(1- C/106) = | C6: =('PB Scrubber Data Inputs'!C7/1000000)/(1-('PB Scrubber Data Inputs'!C7/1000000)) -> 0.001874507203 | D6: lb-moles pollutant/lb-mole pollutant free gas | U6: =(AA6/'PB Scrubber Design Parameters'!$C$14)*('PB Scrubber Data Inputs'!$C$14/'PB Scrubber Data Inputs'!$C$13)*(('PB Scrubber Data Inputs'!$C$10/'PB Scrubber Data Inputs'!$C$11)^0.5) -> 0.04692340628 | W6: =ROUND(((AB6^2)*'PB Scrubber Data Inputs'!$C$44*'PB Scrubber Design Parameters'!$C$27*('PB Scrubber Data Inputs'!$C$16/2.42)^0.2)/('PB Scrubber Data Inputs'!$C$11*'PB Scrubber Data Inputs'!$C$10*32.2),3) -> 0.187 | X6: 0.178 | Y6: 0.009 | Z6: 58 | AA6: =('PB Scrubber Design Parameters'!$C$31*(1/'PB Scrubber Data Inputs'!$C$14))*Z6 -> 7318.826667 | AB6: =(('PB Scrubber Design Parameters'!$C$14*'PB Scrubber Data Inputs'!$C$13)/(3600*'PB Scrubber Data Inputs'!$C$38))/Z6 -> 0.6474805459
A7: ="Concentration of "&'PB Scrubber Data Inputs'!C6&" exiting absorber (Yout) =" -> Concentration of HCl exiting absorber (Yout) = | B7: Yin (1 - η/100) = | C7: =C6*(1-('PB Scrubber Data Inputs'!C33/100)) -> 1.874507203e-05 | D7: lb-moles pollutant/lb-mole pollutant free gas | U7: =(AA7/'PB Scrubber Design Parameters'!$C$14)*('PB Scrubber Data Inputs'!$C$14/'PB Scrubber Data Inputs'!$C$13)*(('PB Scrubber Data Inputs'!$C$10/'PB Scrubber Data Inputs'!$C$11)^0.5) -> 0.04732791841 | W7: =ROUND(((AB7^2)*'PB Scrubber Data Inputs'!$C$44*'PB Scrubber Design Parameters'!$C$27*('PB Scrubber Data Inputs'!$C$16/2.42)^0.2)/('PB Scrubber Data Inputs'!$C$11*'PB Scrubber Data Inputs'!$C$10*32.2),3) -> 0.184 | X7: 0.177 | Y7: 0.007 | Z7: 58.5 | AA7: =('PB Scrubber Design Parameters'!$C$31*(1/'PB Scrubber Data Inputs'!$C$14))*Z7 -> 7381.92 | AB7: =(('PB Scrubber Design Parameters'!$C$14*'PB Scrubber Data Inputs'!$C$13)/(3600*'PB Scrubber Data Inputs'!$C$38))/Z7 -> 0.6419465242
A8: Waste gas flow rate entering the absorber (Gin) = | B8: Waste gas flow rate exiting the absorber (Gout) = | C8: ='PB Scrubber Data Inputs'!C8 -> 22288 | D8: acfm | U8: =(AA8/'PB Scrubber Design Parameters'!$C$14)*('PB Scrubber Data Inputs'!$C$14/'PB Scrubber Data Inputs'!$C$13)*(('PB Scrubber Data Inputs'!$C$10/'PB Scrubber Data Inputs'!$C$11)^0.5) -> 0.04773243053 | W8: =ROUND(((AB8^2)*'PB Scrubber Data Inputs'!$C$44*'PB Scrubber Design Parameters'!$C$27*('PB Scrubber Data Inputs'!$C$16/2.42)^0.2)/('PB Scrubber Data Inputs'!$C$11*'PB Scrubber Data Inputs'!$C$10*32.2),3) -> 0.181 | X8: 0.177 | Y8: 0.004 | Z8: 59 | AA8: =('PB Scrubber Design Parameters'!$C$31*(1/'PB Scrubber Data Inputs'!$C$14))*Z8 -> 7445.013333 | AB8: =(('PB Scrubber Design Parameters'!$C$14*'PB Scrubber Data Inputs'!$C$13)/(3600*'PB Scrubber Data Inputs'!$C$38))/Z8 -> 0.6365062994
A9: Removal efficiency (η) = | B9: Specified by user | C9: ='PB Scrubber Data Inputs'!C33 -> 99 | D9: Percent | U9: =(AA9/'PB Scrubber Design Parameters'!$C$14)*('PB Scrubber Data Inputs'!$C$14/'PB Scrubber Data Inputs'!$C$13)*(('PB Scrubber Data Inputs'!$C$10/'PB Scrubber Data Inputs'!$C$11)^0.5) -> 0.04813694265 | W9: =ROUND(((AB9^2)*'PB Scrubber Data Inputs'!$C$44*'PB Scrubber Design Parameters'!$C$27*('PB Scrubber Data Inputs'!$C$16/2.42)^0.2)/('PB Scrubber Data Inputs'!$C$11*'PB Scrubber Data Inputs'!$C$10*32.2),3) -> 0.178 | X9: 0.176 | Y9: 0.002 | Z9: 59.5 | AA9: =('PB Scrubber Design Parameters'!$C$31*(1/'PB Scrubber Data Inputs'!$C$14))*Z9 -> 7508.106667 | AB9: =(('PB Scrubber Design Parameters'!$C$14*'PB Scrubber Data Inputs'!$C$13)/(3600*'PB Scrubber Data Inputs'!$C$38))/Z9 -> 0.631157507
A10: ="Concentration of "&'PB Scrubber Data Inputs'!C6&" entering the absorber in the solvent (Xin) = " -> Concentration of HCl entering the absorber in the solvent (Xin) = | B10: Assuming system is a once through design or spent solvent is regenerated before recycled. | C10: 0 | D10: lb-moles pollutant/lb-mole pollutant free solvent | U10: =(AA10/'PB Scrubber Design Parameters'!$C$14)*('PB Scrubber Data Inputs'!$C$14/'PB Scrubber Data Inputs'!$C$13)*(('PB Scrubber Data Inputs'!$C$10/'PB Scrubber Data Inputs'!$C$11)^0.5) -> 0.04854145478 | W10: =ROUND(((AB10^2)*'PB Scrubber Data Inputs'!$C$44*'PB Scrubber Design Parameters'!$C$27*('PB Scrubber Data Inputs'!$C$16/2.42)^0.2)/('PB Scrubber Data Inputs'!$C$11*'PB Scrubber Data Inputs'!$C$10*32.2),3) -> 0.175 | X10: 0.176 | Y10: 0.001 | Z10: 60 | AA10: =('PB Scrubber Design Parameters'!$C$31*(1/'PB Scrubber Data Inputs'!$C$14))*Z10 -> 7571.2 | AB10: =(('PB Scrubber Design Parameters'!$C$14*'PB Scrubber Data Inputs'!$C$13)/(3600*'PB Scrubber Data Inputs'!$C$38))/Z10 -> 0.6258978611
A11: Maximum pollutant concentration in liquid phase in equilibrium with pollutant entering column in gas phase (xout*) = | B11: Provided by user (derived from an equilibrium curve) | C11: 0.16 | D11: lb-moles pollutant/lb-mole pollutant free solvent | U11: =(AA11/'PB Scrubber Design Parameters'!$C$14)*('PB Scrubber Data Inputs'!$C$14/'PB Scrubber Data Inputs'!$C$13)*(('PB Scrubber Data Inputs'!$C$10/'PB Scrubber Data Inputs'!$C$11)^0.5) -> 0.0489459669 | W11: =ROUND(((AB11^2)*'PB Scrubber Data Inputs'!$C$44*'PB Scrubber Design Parameters'!$C$27*('PB Scrubber Data Inputs'!$C$16/2.42)^0.2)/('PB Scrubber Data Inputs'!$C$11*'PB Scrubber Data Inputs'!$C$10*32.2),3) -> 0.172 | X11: 0.175 | Y11: 0.003 | Z11: 60.5 | AA11: =('PB Scrubber Design Parameters'!$C$31*(1/'PB Scrubber Data Inputs'!$C$14))*Z11 -> 7634.293333 | AB11: =(('PB Scrubber Design Parameters'!$C$14*'PB Scrubber Data Inputs'!$C$13)/(3600*'PB Scrubber Data Inputs'!$C$38))/Z11 -> 0.6207251515
A12: Minimum L/G ratio (Ls/Gs)min = | B12: (Yin - Yout)/(Xout* - Xin) = | C12: =(C6-C7)/(C11-C10) -> 0.01159851332 | U12: =(AA12/'PB Scrubber Design Parameters'!$C$14)*('PB Scrubber Data Inputs'!$C$14/'PB Scrubber Data Inputs'!$C$13)*(('PB Scrubber Data Inputs'!$C$10/'PB Scrubber Data Inputs'!$C$11)^0.5) -> 0.04935047902 | W12: =ROUND(((AB12^2)*'PB Scrubber Data Inputs'!$C$44*'PB Scrubber Design Parameters'!$C$27*('PB Scrubber Data Inputs'!$C$16/2.42)^0.2)/('PB Scrubber Data Inputs'!$C$11*'PB Scrubber Data Inputs'!$C$10*32.2),3) -> 0.169 | X12: 0.175 | Y12: 0.006 | Z12: 61 | AA12: =('PB Scrubber Design Parameters'!$C$31*(1/'PB Scrubber Data Inputs'!$C$14))*Z12 -> 7697.386667 | AB12: =(('PB Scrubber Design Parameters'!$C$14*'PB Scrubber Data Inputs'!$C$13)/(3600*'PB Scrubber Data Inputs'!$C$38))/Z12 -> 0.6156372404
A13: Actual L/G ratio (Ls/Gs)actual = | B13: (Ls/Gs)min x Adjustment Factor = | C13: =C12*'PB Scrubber Data Inputs'!C37 -> 0.01739776998 | U13: =(AA13/'PB Scrubber Design Parameters'!$C$14)*('PB Scrubber Data Inputs'!$C$14/'PB Scrubber Data Inputs'!$C$13)*(('PB Scrubber Data Inputs'!$C$10/'PB Scrubber Data Inputs'!$C$11)^0.5) -> 0.04975499115 | W13: =ROUND(((AB13^2)*'PB Scrubber Data Inputs'!$C$44*'PB Scrubber Design Parameters'!$C$27*('PB Scrubber Data Inputs'!$C$16/2.42)^0.2)/('PB Scrubber Data Inputs'!$C$11*'PB Scrubber Data Inputs'!$C$10*32.2),3) -> 0.166 | X13: 0.174 | Y13: 0.008 | Z13: 61.5 | AA13: =('PB Scrubber Design Parameters'!$C$31*(1/'PB Scrubber Data Inputs'!$C$14))*Z13 -> 7760.48 | AB13: =(('PB Scrubber Design Parameters'!$C$14*'PB Scrubber Data Inputs'!$C$13)/(3600*'PB Scrubber Data Inputs'!$C$38))/Z13 -> 0.6106320596
A14: Molar flow rate of pollutant free gas (Gs) = | B14: (60 x ρG x Gin)/(MWG x (1 + Yin)) = | C14: =(60*'PB Scrubber Data Inputs'!C10*C8)/('PB Scrubber Data Inputs'!C13*(1+'PB Scrubber Design Parameters'!C6)) -> 3263.301951 | D14: lb-moles/hour | U14: =(AA14/'PB Scrubber Design Parameters'!$C$14)*('PB Scrubber Data Inputs'!$C$14/'PB Scrubber Data Inputs'!$C$13)*(('PB Scrubber Data Inputs'!$C$10/'PB Scrubber Data Inputs'!$C$11)^0.5) -> 0.05015950327 | W14: =ROUND(((AB14^2)*'PB Scrubber Data Inputs'!$C$44*'PB Scrubber Design Parameters'!$C$27*('PB Scrubber Data Inputs'!$C$16/2.42)^0.2)/('PB Scrubber Data Inputs'!$C$11*'PB Scrubber Data Inputs'!$C$10*32.2),3) -> 0.164 | X14: 0.174 | Y14: 0.01 | Z14: 62 | AA14: =('PB Scrubber Design Parameters'!$C$31*(1/'PB Scrubber Data Inputs'!$C$14))*Z14 -> 7823.573333 | AB14: =(('PB Scrubber Design Parameters'!$C$14*'PB Scrubber Data Inputs'!$C$13)/(3600*'PB Scrubber Data Inputs'!$C$38))/Z14 -> 0.6057076075
A15: Molar flow rate of pollutant free solvent (Ls) = | B15: (Ls/Gs)actual x Gs = | C15: =C13*C14 -> 56.77417672 | D15: lb-moles/hour | U15: =(AA15/'PB Scrubber Design Parameters'!$C$14)*('PB Scrubber Data Inputs'!$C$14/'PB Scrubber Data Inputs'!$C$13)*(('PB Scrubber Data Inputs'!$C$10/'PB Scrubber Data Inputs'!$C$11)^0.5) -> 0.05056401539 | W15: =ROUND(((AB15^2)*'PB Scrubber Data Inputs'!$C$44*'PB Scrubber Design Parameters'!$C$27*('PB Scrubber Data Inputs'!$C$16/2.42)^0.2)/('PB Scrubber Data Inputs'!$C$11*'PB Scrubber Data Inputs'!$C$10*32.2),3) -> 0.161 | X15: 0.174 | Y15: 0.013 | Z15: 62.5 | AA15: =('PB Scrubber Design Parameters'!$C$31*(1/'PB Scrubber Data Inputs'!$C$14))*Z15 -> 7886.666667 | AB15: =(('PB Scrubber Design Parameters'!$C$14*'PB Scrubber Data Inputs'!$C$13)/(3600*'PB Scrubber Data Inputs'!$C$38))/Z15 -> 0.6008619466
A16: Waste gas molar flow rate entering the absorber (Gmol,in) = | B16: Gs x (1 + Yin) = | C16: =C14*(1+C6) -> 3269.419034 | D16: lb-moles/hour | U16: =(AA16/'PB Scrubber Design Parameters'!$C$14)*('PB Scrubber Data Inputs'!$C$14/'PB Scrubber Data Inputs'!$C$13)*(('PB Scrubber Data Inputs'!$C$10/'PB Scrubber Data Inputs'!$C$11)^0.5) -> 0.05096852752 | W16: =ROUND(((AB16^2)*'PB Scrubber Data Inputs'!$C$44*'PB Scrubber Design Parameters'!$C$27*('PB Scrubber Data Inputs'!$C$16/2.42)^0.2)/('PB Scrubber Data Inputs'!$C$11*'PB Scrubber Data Inputs'!$C$10*32.2),3) -> 0.158 | X16: 0.173 | Y16: 0.015 | Z16: 63 | AA16: =('PB Scrubber Design Parameters'!$C$31*(1/'PB Scrubber Data Inputs'!$C$14))*Z16 -> 7949.76 | AB16: =(('PB Scrubber Design Parameters'!$C$14*'PB Scrubber Data Inputs'!$C$13)/(3600*'PB Scrubber Data Inputs'!$C$38))/Z16 -> 0.596093201
A17: Liquid molar flow rate entering the absorber (Lmole,in) = | B17: Ls x (1 + Xin) = | C17: =C15*(1+C10) -> 56.77417672 | D17: lb-moles/hour | U17: =(AA17/'PB Scrubber Design Parameters'!$C$14)*('PB Scrubber Data Inputs'!$C$14/'PB Scrubber Data Inputs'!$C$13)*(('PB Scrubber Data Inputs'!$C$10/'PB Scrubber Data Inputs'!$C$11)^0.5) -> 0.05137303964 | W17: =ROUND(((AB17^2)*'PB Scrubber Data Inputs'!$C$44*'PB Scrubber Design Parameters'!$C$27*('PB Scrubber Data Inputs'!$C$16/2.42)^0.2)/('PB Scrubber Data Inputs'!$C$11*'PB Scrubber Data Inputs'!$C$10*32.2),3) -> 0.156 | X17: 0.173 | Y17: 0.017 | Z17: 63.5 | AA17: =('PB Scrubber Design Parameters'!$C$31*(1/'PB Scrubber Data Inputs'!$C$14))*Z17 -> 8012.853333 | AB17: =(('PB Scrubber Design Parameters'!$C$14*'PB Scrubber Data Inputs'!$C$13)/(3600*'PB Scrubber Data Inputs'!$C$38))/Z17 -> 0.5913995538
A18: Concentration of pollutant exiting the absorber in the solvent (xout) = | B18: [(Yin - Yout)/(Ls/Gs)actual)] + Xin = | C18: =((C6-C7)/C13)+C10 -> 0.1066666667 | D18: ="lb-moles "&'PB Scrubber Data Inputs'!C6&"/lb-mole solvent" -> lb-moles HCl/lb-mole solvent | U18: =(AA18/'PB Scrubber Design Parameters'!$C$14)*('PB Scrubber Data Inputs'!$C$14/'PB Scrubber Data Inputs'!$C$13)*(('PB Scrubber Data Inputs'!$C$10/'PB Scrubber Data Inputs'!$C$11)^0.5) -> 0.05177755176 | W18: =ROUND(((AB18^2)*'PB Scrubber Data Inputs'!$C$44*'PB Scrubber Design Parameters'!$C$27*('PB Scrubber Data Inputs'!$C$16/2.42)^0.2)/('PB Scrubber Data Inputs'!$C$11*'PB Scrubber Data Inputs'!$C$10*32.2),3) -> 0.154 | X18: 0.172 | Y18: 0.018 | Z18: 64 | AA18: =('PB Scrubber Design Parameters'!$C$31*(1/'PB Scrubber Data Inputs'!$C$14))*Z18 -> 8075.946667 | AB18: =(('PB Scrubber Design Parameters'!$C$14*'PB Scrubber Data Inputs'!$C$13)/(3600*'PB Scrubber Data Inputs'!$C$38))/Z18 -> 0.5867792447
A19: Mole fraction of pollutant exiting the absorber (xout) = | B19: Xout/(1 + Xout) = | C19: =C18/(1+C18) -> 0.09638554217 | U19: =(AA19/'PB Scrubber Design Parameters'!$C$14)*('PB Scrubber Data Inputs'!$C$14/'PB Scrubber Data Inputs'!$C$13)*(('PB Scrubber Data Inputs'!$C$10/'PB Scrubber Data Inputs'!$C$11)^0.5) -> 0.05218206388 | W19: =ROUND(((AB19^2)*'PB Scrubber Data Inputs'!$C$44*'PB Scrubber Design Parameters'!$C$27*('PB Scrubber Data Inputs'!$C$16/2.42)^0.2)/('PB Scrubber Data Inputs'!$C$11*'PB Scrubber Data Inputs'!$C$10*32.2),3) -> 0.151 | X19: 0.172 | Y19: 0.021 | Z19: 64.5 | AA19: =('PB Scrubber Design Parameters'!$C$31*(1/'PB Scrubber Data Inputs'!$C$14))*Z19 -> 8139.04 | AB19: =(('PB Scrubber Design Parameters'!$C$14*'PB Scrubber Data Inputs'!$C$13)/(3600*'PB Scrubber Data Inputs'!$C$38))/Z19 -> 0.5822305684
A20: Pollutant concentration exiting the absorber in equilibrium with concentration in liquid phase (Yout*) | B20: Provided by user (derived from an equilibrium curve) | C20: 0.0001 | U20: =(AA20/'PB Scrubber Design Parameters'!$C$14)*('PB Scrubber Data Inputs'!$C$14/'PB Scrubber Data Inputs'!$C$13)*(('PB Scrubber Data Inputs'!$C$10/'PB Scrubber Data Inputs'!$C$11)^0.5) -> 0.05258657601 | W20: =ROUND(((AB20^2)*'PB Scrubber Data Inputs'!$C$44*'PB Scrubber Design Parameters'!$C$27*('PB Scrubber Data Inputs'!$C$16/2.42)^0.2)/('PB Scrubber Data Inputs'!$C$11*'PB Scrubber Data Inputs'!$C$10*32.2),3) -> 0.149 | X20: 0.171 | Y20: 0.022 | Z20: 65 | AA20: =('PB Scrubber Design Parameters'!$C$31*(1/'PB Scrubber Data Inputs'!$C$14))*Z20 -> 8202.133333 | AB20: =(('PB Scrubber Design Parameters'!$C$14*'PB Scrubber Data Inputs'!$C$13)/(3600*'PB Scrubber Data Inputs'!$C$38))/Z20 -> 0.5777518717
A21: Mole fraction of pollutant exiting the absorber in equilibrium with concentration in liquid phase (yout*) = | B21: Yout*/(1 + Yout*) = | C21: =C20/(1+C20) -> 9.9990001e-05 | U21: =(AA21/'PB Scrubber Design Parameters'!$C$14)*('PB Scrubber Data Inputs'!$C$14/'PB Scrubber Data Inputs'!$C$13)*(('PB Scrubber Data Inputs'!$C$10/'PB Scrubber Data Inputs'!$C$11)^0.5) -> 0.05299108813 | W21: =ROUND(((AB21^2)*'PB Scrubber Data Inputs'!$C$44*'PB Scrubber Design Parameters'!$C$27*('PB Scrubber Data Inputs'!$C$16/2.42)^0.2)/('PB Scrubber Data Inputs'!$C$11*'PB Scrubber Data Inputs'!$C$10*32.2),3) -> 0.147 | X21: 0.171 | Y21: 0.024 | Z21: 65.5 | AA21: =('PB Scrubber Design Parameters'!$C$31*(1/'PB Scrubber Data Inputs'!$C$14))*Z21 -> 8265.226667 | AB21: =(('PB Scrubber Design Parameters'!$C$14*'PB Scrubber Data Inputs'!$C$13)/(3600*'PB Scrubber Data Inputs'!$C$38))/Z21 -> 0.5733415521
A22: Slope of equilibrium line between xin and xout (m) = | B22: (yout* - yin*)/(xout - xin) = | C22: =(C21-0)/(C11-C10) -> 0.0006249375062 | U22: =(AA22/'PB Scrubber Design Parameters'!$C$14)*('PB Scrubber Data Inputs'!$C$14/'PB Scrubber Data Inputs'!$C$13)*(('PB Scrubber Data Inputs'!$C$10/'PB Scrubber Data Inputs'!$C$11)^0.5) -> 0.05339560025 | W22: =ROUND(((AB22^2)*'PB Scrubber Data Inputs'!$C$44*'PB Scrubber Design Parameters'!$C$27*('PB Scrubber Data Inputs'!$C$16/2.42)^0.2)/('PB Scrubber Data Inputs'!$C$11*'PB Scrubber Data Inputs'!$C$10*32.2),3) -> 0.144 | X22: 0.171 | Y22: 0.027 | Z22: 66 | AA22: =('PB Scrubber Design Parameters'!$C$31*(1/'PB Scrubber Data Inputs'!$C$14))*Z22 -> 8328.32 | AB22: =(('PB Scrubber Design Parameters'!$C$14*'PB Scrubber Data Inputs'!$C$13)/(3600*'PB Scrubber Data Inputs'!$C$38))/Z22 -> 0.5689980555
A23: Absorption factor (AF) = | B23: Lmol,in/(m x Gmol,in) = | C23: =(C13/C22) -> 27.83921561 | U23: =(AA23/'PB Scrubber Design Parameters'!$C$14)*('PB Scrubber Data Inputs'!$C$14/'PB Scrubber Data Inputs'!$C$13)*(('PB Scrubber Data Inputs'!$C$10/'PB Scrubber Data Inputs'!$C$11)^0.5) -> 0.05380011238 | W23: =ROUND(((AB23^2)*'PB Scrubber Data Inputs'!$C$44*'PB Scrubber Design Parameters'!$C$27*('PB Scrubber Data Inputs'!$C$16/2.42)^0.2)/('PB Scrubber Data Inputs'!$C$11*'PB Scrubber Data Inputs'!$C$10*32.2),3) -> 0.142 | X23: 0.17 | Y23: 0.028 | Z23: 66.5 | AA23: =('PB Scrubber Design Parameters'!$C$31*(1/'PB Scrubber Data Inputs'!$C$14))*Z23 -> 8391.413333 | AB23: =(('PB Scrubber Design Parameters'!$C$14*'PB Scrubber Data Inputs'!$C$13)/(3600*'PB Scrubber Data Inputs'!$C$38))/Z23 -> 0.5647198746
A24: Calculated Abscissa = | B24: (Lmol,in/Gmol,in) x (MWL/MWG) x (ρG/ρL)0.5 = | C24: =C13*('PB Scrubber Data Inputs'!C14/'PB Scrubber Data Inputs'!C13)*('PB Scrubber Data Inputs'!C10/'PB Scrubber Data Inputs'!C11)^0.5 -> 0.0003639979305 | U24: =(AA24/'PB Scrubber Design Parameters'!$C$14)*('PB Scrubber Data Inputs'!$C$14/'PB Scrubber Data Inputs'!$C$13)*(('PB Scrubber Data Inputs'!$C$10/'PB Scrubber Data Inputs'!$C$11)^0.5) -> 0.0542046245 | W24: =ROUND(((AB24^2)*'PB Scrubber Data Inputs'!$C$44*'PB Scrubber Design Parameters'!$C$27*('PB Scrubber Data Inputs'!$C$16/2.42)^0.2)/('PB Scrubber Data Inputs'!$C$11*'PB Scrubber Data Inputs'!$C$10*32.2),3) -> 0.14 | X24: 0.17 | Y24: 0.03 | Z24: 67 | AA24: =('PB Scrubber Design Parameters'!$C$31*(1/'PB Scrubber Data Inputs'!$C$14))*Z24 -> 8454.506667 | AB24: =(('PB Scrubber Design Parameters'!$C$14*'PB Scrubber Data Inputs'!$C$13)/(3600*'PB Scrubber Data Inputs'!$C$38))/Z24 -> 0.5605055472
A25: Minimum Abscissa = | C25: 0.01 | U25: =(AA25/'PB Scrubber Design Parameters'!$C$14)*('PB Scrubber Data Inputs'!$C$14/'PB Scrubber Data Inputs'!$C$13)*(('PB Scrubber Data Inputs'!$C$10/'PB Scrubber Data Inputs'!$C$11)^0.5) -> 0.05460913662 | W25: =ROUND(((AB25^2)*'PB Scrubber Data Inputs'!$C$44*'PB Scrubber Design Parameters'!$C$27*('PB Scrubber Data Inputs'!$C$16/2.42)^0.2)/('PB Scrubber Data Inputs'!$C$11*'PB Scrubber Data Inputs'!$C$10*32.2),3) -> 0.138 | X25: 0.169 | Y25: 0.031 | Z25: 67.5 | AA25: =('PB Scrubber Design Parameters'!$C$31*(1/'PB Scrubber Data Inputs'!$C$14))*Z25 -> 8517.6 | AB25: =(('PB Scrubber Design Parameters'!$C$14*'PB Scrubber Data Inputs'!$C$13)/(3600*'PB Scrubber Data Inputs'!$C$38))/Z25 -> 0.5563536543
A26: Ordinate = | B26: 10[-1.668 - 1.085(log Abscissa) - 0.297(log(Abscissa)2] = | C26: =IF(C24>C25,10^(-1.668-(1.085*(LOG10C24)))-(0.297*(LOG10(C24))^2), 10^(-1.668-(1.085*(LOG10(C25)))-(0.297*(LOG10(C25))^2))) -> 0.2060629913 | D26: =IF(C24<C25, "*Ordinate calculated using minimum abscissa value of 0.01.") -> *Ordinate calculated using minimum abscissa value of 0.01. | U26: =(AA26/'PB Scrubber Design Parameters'!$C$14)*('PB Scrubber Data Inputs'!$C$14/'PB Scrubber Data Inputs'!$C$13)*(('PB Scrubber Data Inputs'!$C$10/'PB Scrubber Data Inputs'!$C$11)^0.5) -> 0.05501364875 | W26: =ROUND(((AB26^2)*'PB Scrubber Data Inputs'!$C$44*'PB Scrubber Design Parameters'!$C$27*('PB Scrubber Data Inputs'!$C$16/2.42)^0.2)/('PB Scrubber Data Inputs'!$C$11*'PB Scrubber Data Inputs'!$C$10*32.2),3) -> 0.136 | X26: 0.169 | Y26: 0.033 | Z26: 68 | AA26: =('PB Scrubber Design Parameters'!$C$31*(1/'PB Scrubber Data Inputs'!$C$14))*Z26 -> 8580.693333 | AB26: =(('PB Scrubber Design Parameters'!$C$14*'PB Scrubber Data Inputs'!$C$13)/(3600*'PB Scrubber Data Inputs'!$C$38))/Z26 -> 0.5522628186
A27: Ratio of the density of the scrubbing liquid to water (ψ) | B27: ρL/ρw = | C27: ='PB Scrubber Data Inputs'!C11/62.4 -> 1 | U27: =(AA27/'PB Scrubber Design Parameters'!$C$14)*('PB Scrubber Data Inputs'!$C$14/'PB Scrubber Data Inputs'!$C$13)*(('PB Scrubber Data Inputs'!$C$10/'PB Scrubber Data Inputs'!$C$11)^0.5) -> 0.05541816087 | W27: =ROUND(((AB27^2)*'PB Scrubber Data Inputs'!$C$44*'PB Scrubber Design Parameters'!$C$27*('PB Scrubber Data Inputs'!$C$16/2.42)^0.2)/('PB Scrubber Data Inputs'!$C$11*'PB Scrubber Data Inputs'!$C$10*32.2),3) -> 0.134 | X27: 0.168 | Y27: 0.034 | Z27: 68.5 | AA27: =('PB Scrubber Design Parameters'!$C$31*(1/'PB Scrubber Data Inputs'!$C$14))*Z27 -> 8643.786667 | AB27: =(('PB Scrubber Design Parameters'!$C$14*'PB Scrubber Data Inputs'!$C$13)/(3600*'PB Scrubber Data Inputs'!$C$38))/Z27 -> 0.5482317031
A28: Superficial gas flow rate (Gsfr,in) = | B28: [(ρL x ρG x gc x Ordinate)/(Fp x ψ x (μL/2.42)0.2]0.5 = | C28: =(('PB Scrubber Data Inputs'!C11*'PB Scrubber Data Inputs'!C10*32.2*C26)/('PB Scrubber Data Inputs'!C44*'PB Scrubber Design Parameters'!C27*(('PB Scrubber Data Inputs'!C16/2.42)^0.2)))^0.5 -> 0.6797087042 | D28: lb/sec-ft2 | U28: =(AA28/'PB Scrubber Design Parameters'!$C$14)*('PB Scrubber Data Inputs'!$C$14/'PB Scrubber Data Inputs'!$C$13)*(('PB Scrubber Data Inputs'!$C$10/'PB Scrubber Data Inputs'!$C$11)^0.5) -> 0.05582267299 | W28: =ROUND(((AB28^2)*'PB Scrubber Data Inputs'!$C$44*'PB Scrubber Design Parameters'!$C$27*('PB Scrubber Data Inputs'!$C$16/2.42)^0.2)/('PB Scrubber Data Inputs'!$C$11*'PB Scrubber Data Inputs'!$C$10*32.2),3) -> 0.132 | X28: 0.168 | Y28: 0.036 | Z28: 69 | AA28: =('PB Scrubber Design Parameters'!$C$31*(1/'PB Scrubber Data Inputs'!$C$14))*Z28 -> 8706.88 | AB28: =(('PB Scrubber Design Parameters'!$C$14*'PB Scrubber Data Inputs'!$C$13)/(3600*'PB Scrubber Data Inputs'!$C$38))/Z28 -> 0.5442590096
A29: Calculated cross-sectional area (Acalc) = | B29: (Gmol,in x MWG)/(3,600 x Gsfr,in x f) = | C29: =(C16*'PB Scrubber Data Inputs'!C13)/(3600*C28*'PB Scrubber Data Inputs'!C38) -> 55.35351605 | D29: ft2 | U29: =(AA29/'PB Scrubber Design Parameters'!$C$14)*('PB Scrubber Data Inputs'!$C$14/'PB Scrubber Data Inputs'!$C$13)*(('PB Scrubber Data Inputs'!$C$10/'PB Scrubber Data Inputs'!$C$11)^0.5) -> 0.05622718512 | W29: =ROUND(((AB29^2)*'PB Scrubber Data Inputs'!$C$44*'PB Scrubber Design Parameters'!$C$27*('PB Scrubber Data Inputs'!$C$16/2.42)^0.2)/('PB Scrubber Data Inputs'!$C$11*'PB Scrubber Data Inputs'!$C$10*32.2),3) -> 0.13 | X29: 0.168 | Y29: 0.038 | Z29: 69.5 | AA29: =('PB Scrubber Design Parameters'!$C$31*(1/'PB Scrubber Data Inputs'!$C$14))*Z29 -> 8769.973333 | AB29: =(('PB Scrubber Design Parameters'!$C$14*'PB Scrubber Data Inputs'!$C$13)/(3600*'PB Scrubber Data Inputs'!$C$38))/Z29 -> 0.5403434772
A30: Superficial liquid flow rate (Lsfr,in) = | B30: (Lmol,in x MWL)/Acalc = | C30: =(C17*'PB Scrubber Data Inputs'!C14)/'PB Scrubber Design Parameters'!C29 -> 18.46197412 | D30: lb/hour-ft2 | E30: =IF(C30<C31,"*Calculated liquid flow rate is below the minimum needed to wet the packed bed.","*Liquid flow rate is above the minimum needed to wet the packed bed.") -> *Calculated liquid flow rate is below the minimum needed to wet the packed bed. | U30: =(AA30/'PB Scrubber Design Parameters'!$C$14)*('PB Scrubber Data Inputs'!$C$14/'PB Scrubber Data Inputs'!$C$13)*(('PB Scrubber Data Inputs'!$C$10/'PB Scrubber Data Inputs'!$C$11)^0.5) -> 0.05663169724 | W30: =ROUND(((AB30^2)*'PB Scrubber Data Inputs'!$C$44*'PB Scrubber Design Parameters'!$C$27*('PB Scrubber Data Inputs'!$C$16/2.42)^0.2)/('PB Scrubber Data Inputs'!$C$11*'PB Scrubber Data Inputs'!$C$10*32.2),3) -> 0.128 | X30: 0.167 | Y30: 0.039 | Z30: 70 | AA30: =('PB Scrubber Design Parameters'!$C$31*(1/'PB Scrubber Data Inputs'!$C$14))*Z30 -> 8833.066667 | AB30: =(('PB Scrubber Design Parameters'!$C$14*'PB Scrubber Data Inputs'!$C$13)/(3600*'PB Scrubber Data Inputs'!$C$38))/Z30 -> 0.5364838809
A31: Minimum superficial liquid flow rate needed to wet the packed bed (Lsfr,in)min = | B31: MWR x ρL x a = | C31: ='PB Scrubber Data Inputs'!C17*'PB Scrubber Data Inputs'!C11*'PB Scrubber Data Inputs'!C50 -> 2271.36 | D31: lb/hour-ft2 | U31: =(AA31/'PB Scrubber Design Parameters'!$C$14)*('PB Scrubber Data Inputs'!$C$14/'PB Scrubber Data Inputs'!$C$13)*(('PB Scrubber Data Inputs'!$C$10/'PB Scrubber Data Inputs'!$C$11)^0.5) -> 0.05703620936 | W31: =ROUND(((AB31^2)*'PB Scrubber Data Inputs'!$C$44*'PB Scrubber Design Parameters'!$C$27*('PB Scrubber Data Inputs'!$C$16/2.42)^0.2)/('PB Scrubber Data Inputs'!$C$11*'PB Scrubber Data Inputs'!$C$10*32.2),3) -> 0.127 | X31: 0.167 | Y31: 0.04 | Z31: 70.5 | AA31: =('PB Scrubber Design Parameters'!$C$31*(1/'PB Scrubber Data Inputs'!$C$14))*Z31 -> 8896.16 | AB31: =(('PB Scrubber Design Parameters'!$C$14*'PB Scrubber Data Inputs'!$C$13)/(3600*'PB Scrubber Data Inputs'!$C$38))/Z31 -> 0.5326790307
A32: Cross-sectional area based on minimum flow rate needed to wet the packed bed (A) = | C32: =Z38 -> 60 | D32: ft2 | U32: =(AA32/'PB Scrubber Design Parameters'!$C$14)*('PB Scrubber Data Inputs'!$C$14/'PB Scrubber Data Inputs'!$C$13)*(('PB Scrubber Data Inputs'!$C$10/'PB Scrubber Data Inputs'!$C$11)^0.5) -> 0.05744072149 | W32: =ROUND(((AB32^2)*'PB Scrubber Data Inputs'!$C$44*'PB Scrubber Design Parameters'!$C$27*('PB Scrubber Data Inputs'!$C$16/2.42)^0.2)/('PB Scrubber Data Inputs'!$C$11*'PB Scrubber Data Inputs'!$C$10*32.2),3) -> 0.125 | X32: 0.166 | Y32: 0.041 | Z32: 71 | AA32: =('PB Scrubber Design Parameters'!$C$31*(1/'PB Scrubber Data Inputs'!$C$14))*Z32 -> 8959.253333 | AB32: =(('PB Scrubber Design Parameters'!$C$14*'PB Scrubber Data Inputs'!$C$13)/(3600*'PB Scrubber Data Inputs'!$C$38))/Z32 -> 0.5289277699
A33: Adjusted liquid flow rate (Lmol, in) = | C33: =AA38 -> 7571.2 | D33: lb/sec-ft2 | U33: =(AA33/'PB Scrubber Design Parameters'!$C$14)*('PB Scrubber Data Inputs'!$C$14/'PB Scrubber Data Inputs'!$C$13)*(('PB Scrubber Data Inputs'!$C$10/'PB Scrubber Data Inputs'!$C$11)^0.5) -> 0.05784523361 | W33: =ROUND(((AB33^2)*'PB Scrubber Data Inputs'!$C$44*'PB Scrubber Design Parameters'!$C$27*('PB Scrubber Data Inputs'!$C$16/2.42)^0.2)/('PB Scrubber Data Inputs'!$C$11*'PB Scrubber Data Inputs'!$C$10*32.2),3) -> 0.123 | X33: 0.166 | Y33: 0.043 | Z33: 71.5 | AA33: =('PB Scrubber Design Parameters'!$C$31*(1/'PB Scrubber Data Inputs'!$C$14))*Z33 -> 9022.346667 | AB33: =(('PB Scrubber Design Parameters'!$C$14*'PB Scrubber Data Inputs'!$C$13)/(3600*'PB Scrubber Data Inputs'!$C$38))/Z33 -> 0.5252289743
A34: Adjusted superficial gas flow rate (Gsfr, in) = | C34: =AB38 -> 0.6258978611 | D34: lb/sec-ft2 | U34: =(AA34/'PB Scrubber Design Parameters'!$C$14)*('PB Scrubber Data Inputs'!$C$14/'PB Scrubber Data Inputs'!$C$13)*(('PB Scrubber Data Inputs'!$C$10/'PB Scrubber Data Inputs'!$C$11)^0.5) -> 0.05824974573 | W34: =ROUND(((AB34^2)*'PB Scrubber Data Inputs'!$C$44*'PB Scrubber Design Parameters'!$C$27*('PB Scrubber Data Inputs'!$C$16/2.42)^0.2)/('PB Scrubber Data Inputs'!$C$11*'PB Scrubber Data Inputs'!$C$10*32.2),3) -> 0.121 | X34: 0.166 | Y34: 0.045 | Z34: 72 | AA34: =('PB Scrubber Design Parameters'!$C$31*(1/'PB Scrubber Data Inputs'!$C$14))*Z34 -> 9085.44 | AB34: =(('PB Scrubber Design Parameters'!$C$14*'PB Scrubber Data Inputs'!$C$13)/(3600*'PB Scrubber Data Inputs'!$C$38))/Z34 -> 0.5215815509
A35: Diameter of the column (D) = | B35: [4 x A)/π]0.5 = | C35: =((4*(C32))/PI())^0.5 -> 8.740387445 | D35: ft | U35: =(AA35/'PB Scrubber Design Parameters'!$C$14)*('PB Scrubber Data Inputs'!$C$14/'PB Scrubber Data Inputs'!$C$13)*(('PB Scrubber Data Inputs'!$C$10/'PB Scrubber Data Inputs'!$C$11)^0.5) -> 0.05865425785 | W35: =ROUND(((AB35^2)*'PB Scrubber Data Inputs'!$C$44*'PB Scrubber Design Parameters'!$C$27*('PB Scrubber Data Inputs'!$C$16/2.42)^0.2)/('PB Scrubber Data Inputs'!$C$11*'PB Scrubber Data Inputs'!$C$10*32.2),3) -> 0.12 | X35: 0.165 | Y35: 0.045 | Z35: 72.5 | AA35: =('PB Scrubber Design Parameters'!$C$31*(1/'PB Scrubber Data Inputs'!$C$14))*Z35 -> 9148.533333 | AB35: =(('PB Scrubber Design Parameters'!$C$14*'PB Scrubber Data Inputs'!$C$13)/(3600*'PB Scrubber Data Inputs'!$C$38))/Z35 -> 0.5179844367
A36: Pollutant concentration exiting the absorber (Xout) = | B36: [(Yin - Yout)/(Ls/Gs)] + Xin = | C36: =((C6-C7)/C13)+C10 -> 0.1066666667 | D36: lb-moles pollutant/lb-moles solvent | U36: =(AA36/'PB Scrubber Design Parameters'!$C$14)*('PB Scrubber Data Inputs'!$C$14/'PB Scrubber Data Inputs'!$C$13)*(('PB Scrubber Data Inputs'!$C$10/'PB Scrubber Data Inputs'!$C$11)^0.5) -> 0.05905876998 | W36: =ROUND(((AB36^2)*'PB Scrubber Data Inputs'!$C$44*'PB Scrubber Design Parameters'!$C$27*('PB Scrubber Data Inputs'!$C$16/2.42)^0.2)/('PB Scrubber Data Inputs'!$C$11*'PB Scrubber Data Inputs'!$C$10*32.2),3) -> 0.118 | X36: 0.165 | Y36: 0.047 | Z36: 73 | AA36: =('PB Scrubber Design Parameters'!$C$31*(1/'PB Scrubber Data Inputs'!$C$14))*Z36 -> 9211.626667 | AB36: =(('PB Scrubber Design Parameters'!$C$14*'PB Scrubber Data Inputs'!$C$13)/(3600*'PB Scrubber Data Inputs'!$C$38))/Z36 -> 0.5144365981
A37: Number of transfer units (Ntu) = | B37: Ln[yin/yout] = | C37: =LN(C6/C7) -> 4.605170186 | U37: =(AA37/'PB Scrubber Design Parameters'!$C$14)*('PB Scrubber Data Inputs'!$C$14/'PB Scrubber Data Inputs'!$C$13)*(('PB Scrubber Data Inputs'!$C$10/'PB Scrubber Data Inputs'!$C$11)^0.5) -> 0.0594632821 | W37: =ROUND(((AB37^2)*'PB Scrubber Data Inputs'!$C$44*'PB Scrubber Design Parameters'!$C$27*('PB Scrubber Data Inputs'!$C$16/2.42)^0.2)/('PB Scrubber Data Inputs'!$C$11*'PB Scrubber Data Inputs'!$C$10*32.2),3) -> 0.116 | X37: 0.164 | Y37: 0.048 | Z37: 73.5 | AA37: =('PB Scrubber Design Parameters'!$C$31*(1/'PB Scrubber Data Inputs'!$C$14))*Z37 -> 9274.72 | AB37: =(('PB Scrubber Design Parameters'!$C$14*'PB Scrubber Data Inputs'!$C$13)/(3600*'PB Scrubber Data Inputs'!$C$38))/Z37 -> 0.5109370294
A38: Height of liquid transfer unit (HL) = | B38: Φ x (Lsfr,in/μL)b x (μL/ρL x DL)0.5 = | C38: ='PB Scrubber Data Inputs'!C48*((C31/'PB Scrubber Data Inputs'!C16)^'PB Scrubber Data Inputs'!C49)*(('PB Scrubber Data Inputs'!C16/('PB Scrubber Data Inputs'!C11*'PB Scrubber Data Inputs'!C19))^0.5) -> 1.06425965 | D38: ft | X38: Min | Y38: =MIN(Y2:Y37) -> 0.001 | Z38: =VLOOKUP(Y38,Y2:Z37,2,FALSE) -> 60 | AA38: =VLOOKUP(Y38,Y2:AB37,3,FALSE) -> 7571.2 | AB38: =VLOOKUP(Y38,Y2:AB37,4,FALSE) -> 0.6258978611
A39: Height of gas transfer unit (HG) = | B39: [α x (3,600 x f x Gsfr,in)β)/(Lsfr,in)γ] x (μG/ρG x DG)0.5 | C39: ='PB Scrubber Data Inputs'!C45*(((3600*'PB Scrubber Data Inputs'!C38*C34)^'PB Scrubber Data Inputs'!C46)/('PB Scrubber Design Parameters'!C31^'PB Scrubber Data Inputs'!C47))*(('PB Scrubber Data Inputs'!C15/('PB Scrubber Data Inputs'!C10*'PB Scrubber Data Inputs'!C18))^0.5) -> 2.234135635 | D39: ft
A40: Height of transfer Unit (Htu) = | B40: HG + (1/AF) x HL ≈ HG ≈ | C40: =C39 -> 2.234135635 | D40: ft
A41: Depth of packing (Hpack) = | B41: Ntu x Htu = | C41: =C37*C40 -> 10.28857482 | D41: ft
A42: Total height of absorber tower (Htower) = | B42: (1.4 x Hpack) + (1.02 x D) + 2.81 = | C42: =(1.4*C41)+(1.02*C35)+2.81 -> 26.12919994 | D42: ft
A43: Surface area of absorber tower (S) = | B43: π x D x (Htower + D/2) = | C43: =PI()*C35*(C42+(C35/2)) -> 837.4748287 | D43: ft2
A44: Volume of packing (V) = | B44: A x Hpack = | C44: =C32*C41 -> 617.3144889 | D44: ft3
A45: Solvent flow rate (Lin) = | B45: (L sft,in)min x A x (1/8.34lb/gallon) x (1/60 minutes/hour) = | C45: =C31*C32*(1/8.34)*(1/60) -> 272.3453237 | D45: gpm
A46: Impeller diameter for fan (d) = | B46: Provided by user | C46: ='PB Scrubber Data Inputs'!C40 -> 33 | D46: inches
A47: Pressure drop across packed bed (ΔP) = | B47: [c x 10(j x Lsfr,in/3,600) x (f x Gsfr,in)2/ρG ] * Hpack = | C47: ='PB Scrubber Data Inputs'!C51*10^(('PB Scrubber Data Inputs'!C52*'PB Scrubber Design Parameters'!C31)/3600)*((('PB Scrubber Data Inputs'!C38*'PB Scrubber Design Parameters'!C28)^2)/'PB Scrubber Data Inputs'!C10)*C41 -> 10.09300843 | D47: inches of water
A48: Pressure for the solvent pump (Ppump) = | C48: ='PB Scrubber Data Inputs'!C39 -> 60 | D48: ft of water | J48: FRP | K48: 1 | L48: =IF('PB Scrubber Data Inputs'!S54=1,1,0) -> 1 | M48: =K48*L48 -> 1
A49: Total annual operating time for the scrubber (top) = | C49: ='PB Scrubber Data Inputs'!C34 -> 8000 | D49: hours | J49: 304 Stainless Steel | K49: 1.75 | L49: =IF('PB Scrubber Data Inputs'!S54=2,1,0) -> 0 | M49: =K49*L49 -> 0 | N49: =SUM(M48:M51) -> 1
A50: ='PB Scrubber Data Inputs'!C6&" removed per year =" -> HCl removed per year = | B50: (Gmass,p x top )/2000 = | C50: =(C71*'PB Scrubber Data Inputs'!C34/2000)*'PB Scrubber Data Inputs'!C33/100 -> 884.1631788 | D50: tons/year | J50: Polyvinylchloride | K50: 0.9 | L50: =IF('PB Scrubber Data Inputs'!S54=4,1,0) -> 0 | M50: =K50*L50 -> 0
A51: Scrubber material conversion factor (CF) = | B51: CF = 1 for FRP; CF = 1.75 for 304 stainless steel; CF = 1.1 for polypropylene; and CF = 0.9 for polyvinylchloride | C51: =SUM(M48:M51) -> 1 | J51: Polypropylene | K51: 1.1 | L51: =IF('PB Scrubber Data Inputs'!S54=3,1,0) -> 0 | M51: =K51*L51 -> 0
A52: Scaling Factor (SF) = | B52: ="CEPCI for "&'PB Scrubber Data Inputs'!C63&"/390.6" -> CEPCI for 2016/390.6 | C52: ='PB Scrubber Data Inputs'!C64/'PB Scrubber Data Inputs'!F64 -> 1.386840758 | D52: dimensionless; 390.6 is the CEPCI for 1991
A54: Capital Recovery Factor:
A56: Parameter | B56: Equation | C56: Calculated Value
A57: Capital Recovery Factor (CRF) = | B57: i (1+ i)n/((1+ i)n - 1) = | C57: =ROUND((('PB Scrubber Data Inputs'!C67/100)*((1+'PB Scrubber Data Inputs'!C67/100)^'PB Scrubber Data Inputs'!C36))/(((1+'PB Scrubber Data Inputs'!C67/100)^'PB Scrubber Data Inputs'!C36)-1),4) -> 0.0527
B58: Where n = Equipment Life and i= Interest Rate
A60: Parameter | B60: Equation | C60: Calculated Value | D60: Units
A61: Electricity:
A62: Power to operate fan (Efan) = | B62: [1.17x10-4 x G x ΔP]/ε = | C62: =(0.000117*'PB Scrubber Data Inputs'!C8*C47)/('PB Scrubber Data Inputs'!C35/100) -> 37.59928245 | D62: kW
A63: Power to operate pump (Epump) = | B63: [(0.746) x (2.52 x 10-4) x L x P]/ε = | C63: =(0.746*0.000252*C45*C48)/('PB Scrubber Data Inputs'!C35/100) -> 4.388463609 | D63: kW
A64: Total Energy (Etotal) = | B64: Efan + Epump = | C64: =SUM(C62:C63) -> 41.98774606 | D64: kW
A65: Sorbent Usage:
A66: Molar flow rate in (Lmol,i) = | B66: (Lsfr,in)min/MWL) x A = | C66: =(C31/'PB Scrubber Data Inputs'!C14)*C32 -> 7571.2 | D66: lb-moles/hour
A67: Mass flow rate of liquid (Lmass) = | B67: Lmol,in x MWL = | C67: =C66*'PB Scrubber Data Inputs'!C14 -> 136281.6 | D67: lb/hour
A68: Flow rate of gas stream (Gmol,i) = | B68: Gs x (1 + Yin) = | C68: =C16 -> 3269.419034 | D68: lb-moles/hour
A69: Mass flow rate of gas stream (Gmass) = | B69: Gmol,in x MWG = | C69: =C68*'PB Scrubber Data Inputs'!C13 -> 94813.152 | D69: lb/hour
A70: Flow rate of pollutant (Gp) = | B70: Gmol,in x C x ppmv/1x106 = | C70: =C68*'PB Scrubber Data Inputs'!C7/1000000 -> 6.117083014 | D70: ="lb-moles "&'PB Scrubber Data Inputs'!C6&"/hour" -> lb-moles HCl/hour
A71: Mass flow rate of pollutant (Gmass,p) = | B71: Gp x MWp = | C71: =C70*'PB Scrubber Data Inputs'!C12 -> 223.27353 | D71: ="lbs "&'PB Scrubber Data Inputs'!C6&"/hour" -> lbs HCl/hour
A72: Sorbent consumption rate (Qsorbent) = | B72: ='PB Scrubber Data Inputs'!C27&" moles of sorbent x Gmass,p x MWs x Pollutant Removal Efficiency/100 =" -> 0.5 moles of sorbent x Gmass,p x MWs x Pollutant Removal Efficiency/100 = | C72: ='PB Scrubber Data Inputs'!C27*'PB Scrubber Design Parameters'!C70*'PB Scrubber Data Inputs'!C31*(C9/100) -> 121.027405 | D72: lbs/hour
A73: Waste Generation:
A74: Waste generation rate (qwaste) = | B74: (Gmass,p/MWp) x MWw x (moles of waste/moles of pollutant) = | C74: =(C71/'PB Scrubber Data Inputs'!C12)*'PB Scrubber Data Inputs'!C32*'PB Scrubber Data Inputs'!C29 -> 357.8493563 | D74: ="lb "&'PB Scrubber Data Inputs'!C28&"/hour" -> lb sodium chloride/hour
A75: Wastewater flow rate (Qww) = | B75: (qwaste/WF) x (1/8.34lb/gal) x (1hour/60 minutes) = | C75: =C74*(1/('PB Scrubber Data Inputs'!C30/100))*(1/8.34)*(1/60) -> 7.151266113 | D75: gpm
A76: Solvent Usage:
A77: Solvent consumption rate (Qsolvent) = | B77: (qwaste/WF) x (1/8.34lb/gal) x (1hour/60 minutes) = | C77: =C74*(1/('PB Scrubber Data Inputs'!C30/100))*(1/8.34)*(1/60) -> 7.151266113 | D77: gpm

Sheet PB Scrubber Cost Estimate
A1: Packed Bed Scrubber Cost Estimate
A3: Total Capital Investment (TCI)
A4: TCI = Direct Costs + Indirect Costs + Contingency Costs
A5: Total Direct Costs (DC) = | B5: PEC + Total Direct Installation Costs = | C5: =C25+C38 -> 371855.0634
A6: Total Indirect Costs (IC) = | C6: =C46 -> 64320.87582
A7: Contingency Costs = | B7: CF(DC + IC) = | C7: ='PB Scrubber Data Inputs'!C58*(C5+C6) -> 43617.59392
A8: Total Capital Investment (TCI) = | C8: =SUM(C5:C7) -> 479793.5331 | D8: ="in "&'PB Scrubber Data Inputs'!C63& " dollars" -> in 2016 dollars
A10: Equipment Costs
A11: Tower Cost (TC) = | B11: 115 x S x CF x SF = | C11: ='PB Scrubber Design Parameters'!C51*115*'PB Scrubber Design Parameters'!C43*'PB Scrubber Design Parameters'!C52 -> 133566.086
A12: Packing Cost = | B12: V x Costpacking x SF = | C12: ='PB Scrubber Design Parameters'!C44*'PB Scrubber Data Inputs'!C69*'PB Scrubber Design Parameters'!C52 -> 17122.33787
A13: Where CF = material conversion factor; S = surface area of absorber; V = packing volume; and SF = Scaling factor
A14: Auxiliary Equipment Costs
A15: Pump Cost = | B15: L x 16 x SF = | C15: ='PB Scrubber Design Parameters'!C45*16*'PB Scrubber Design Parameters'!C52 -> 6043.193523
A16: Fan Cost = | B16: 57.9(d)1.38 x SF = | C16: =57.9*('PB Scrubber Design Parameters'!C46^1.38)*'PB Scrubber Design Parameters'!C52 -> 10005.85943
A17: Fan Motor Cost = | B17: 104(hpfan)0.821 x SF = | C17: =104*(('PB Scrubber Design Parameters'!C62/0.746)^0.821)*'PB Scrubber Design Parameters'!C52 -> 3603.825673
A18: Total Auxiliary Equipment Cost = | C18: =SUM(C15:C17) -> 19652.87863
A19: Where L = flow rate; d = diameter of impeller; hpfan = fan motor size; and SF = scaling factor
A20: Purchase Equipment Cost (PEC)
A21: Equipment Costs (EC)* = | B21: TC + Packing Cost + Auxiliary Equipment = | C21: =SUM(C11:C17) -> 170341.3025
A22: Instrumentation Costs** = | B22: 0.1 x EC = | C22: =0.1*C21 -> 17034.13025
A23: Sales Tax = | B23: 0.03 x EC = | C23: =0.03*C21 -> 5110.239075
A24: Freight = | B24: 0.05 x EC = | C24: =0.05*C21 -> 8517.065125
A25: Purchase Equipment Cost (B) = | C25: =SUM(C21:C24) -> 201002.7369 | D25: ="in "&'PB Scrubber Data Inputs'!C63& " dollars" -> in 2016 dollars
A26: * Includes the initial quantity of packing, as well as items normally not included with the unit supplied by vendors, such as ductwork, fan, piping, etc.
A27: ** Instrumentation costs cover pH monitor and liquid level indicator in sump.
A29: Total Direct Installation Costs
A30: Foundations & Supports = | B30: 0.12 x B = | C30: =0.12*C25 -> 24120.32843
A31: Handling & Erection = | B31: 0.4 x B = | C31: =0.4*C25 -> 80401.09478
A32: Electrical = | B32: 0.01 x B = | C32: =0.01*C25 -> 2010.027369
A33: Piping = | B33: 0.3 x B = | C33: =0.3*C25 -> 60300.82108
A34: Insulation = | B34: 0.01 x B = | C34: =0.01*C25 -> 2010.027369
A35: Painting = | B35: 0.01 x B = | C35: =0.01*C25 -> 2010.027369
A36: Site Preparation Cost (SP) = | C36: ='PB Scrubber Data Inputs'!C56 -> 0
A37: Building Costs (Bldg) = | C37: ='PB Scrubber Data Inputs'!C57 -> 0
A38: Total Direct Installation Costs = | B38: (0.85 x B) + SP + Bldg = | C38: =(0.85*C25)+C36+C37 -> 170852.3264 | D38: ="in "&'PB Scrubber Data Inputs'!C63& " dollars" -> in 2016 dollars
A40: Total Indirect Capital Costs (Installation)
A41: Engineering = | B41: 0.1 x B = | C41: =0.1*C25 -> 20100.27369
A42: Construction and field expenses = | B42: 0.1 x B = | C42: =0.1*C25 -> 20100.27369
A43: Contractor fees = | B43: 0.1 x B = | C43: =0.1*C25 -> 20100.27369
A44: Start-up = | B44: 0.01 x B = | C44: =0.01*C25 -> 2010.027369
A45: Performance test = | B45: 0.01 x B = | C45: =0.01*C25 -> 2010.027369
A46: Total Indirect Capital Costs (IC) = | B46: 0.32 x B = | C46: =0.32*C25 -> 64320.87582 | D46: ="in "&'PB Scrubber Data Inputs'!C63& " dollars" -> in 2016 dollars
A48: Annual Costs
A50: Direct Annual Costs (DAC)
A51: DAC = Annual Operator Cost + Annual Reagent Cost + Annual Solvent Cost + Annual Waste Disposal Cost + Annual Maintenance Costs + Annual Auxiliary Power Cost
A52: Annual Operator Labor Cost = | B52: 0.5 hours per shift x Labor Rate = 0.5 hours x (top/8) x Labor Rate = | C52: =(0.5)*('PB Scrubber Data Inputs'!C34/8)*'PB Scrubber Data Inputs'!C74 -> 13305
A53: Annual Supervisor Labor Cost = | B53: 0.15 x Annual Operator Labor Cost = | C53: =0.15*C52 -> 1995.75
A54: ="Annual "&'PB Scrubber Data Inputs'!C26&" Cost =" -> Annual Sodium hydroxide Cost = | B54: Qsorbent x Costsorbent x top = | C54: ='PB Scrubber Design Parameters'!C72*'PB Scrubber Data Inputs'!C70*'PB Scrubber Data Inputs'!C34*(1/2000) -> 216397.0001
A55: Annual Solvent Cost = | B55: qsolvent x CostSolvent x top = | C55: ='PB Scrubber Design Parameters'!C77*60*'PB Scrubber Data Inputs'!C34*('PB Scrubber Data Inputs'!C71) -> 14416.95248
A56: Annual Wastewater Disposal Cost = | B56: Qww x Costww x top = | C56: ='PB Scrubber Design Parameters'!C75*'PB Scrubber Data Inputs'!C34*60*'PB Scrubber Data Inputs'!C73 -> 19565.86408
A57: Annual Maintenance Labor Cost = | B57: 0.5 hours per shift x Labor Rate = 0.5 hours x (top/8) x Labor Rate = | C57: =(0.5)*('PB Scrubber Data Inputs'!C34/8)*'PB Scrubber Data Inputs'!C75 -> 14635
A58: Annual Maintenance Materials Cost = | B58: 100% x Annual Maintenance Labor Cost = | C58: =C57 -> 14635
A59: Annual Electricity Cost = | B59: Etotal x Costelect x top = | C59: ='PB Scrubber Design Parameters'!C64*'PB Scrubber Data Inputs'!C72*'PB Scrubber Design Parameters'!C49 -> 22706.97307
A60: Direct Annual Cost = | C60: =SUM(C52:C59) -> 317657.5398 | D60: ="in "&'PB Scrubber Data Inputs'!C63& " dollars" -> in 2016 dollars
A62: Indirect Annual Cost (IAC)
A63: IAC = Overhead + Administrative Charges + Property Tax + Insurance + Capital Recovery Costs
A64: Overhead = | B64: 0.6 x (Total Labor Costs + Material Cost) = | C64: =0.6*(C52+C53+C57+C58) -> 26742.45
A65: Administrative Charges = | B65: 0.02 x TCI = | C65: =0.02*C8 -> 9595.870662
A66: Property Tax = | B66: 0.01 x TCI = | C66: =0.01*C8 -> 4797.935331
A67: Insurance = | B67: 0.01 x TCI = | C67: =0.01*C8 -> 4797.935331
A68: Capital Recovery Costs (CR)= | B68: CRF x TCI = | C68: ='PB Scrubber Design Parameters'!C57*C8 -> 25285.11919
A69: Indirect Annual Cost (IAC) = | C69: =SUM(C64:C68) -> 71219.31052 | D69: ="in "&'PB Scrubber Data Inputs'!C63& " dollars" -> in 2016 dollars
A71: Total Annual Cost (TAC)
A72: TAC = Direct Annual Costs + Indirect Annual Costs
A73: Direct Annual Costs (DAC) = | B73: =C60 -> 317657.5398
A74: Indirect Annual Costs (IAC) = | B74: =C69 -> 71219.31052
A75: Total annual costs (TAC) = DAC + IAC | B75: =B73+B74 -> 388876.8503 | C75: ="in "&'PB Scrubber Data Inputs'!C63& " dollars" -> in 2016 dollars
A77: Cost Effectiveness
A79: ="Cost Effectiveness = Total Annual Cost/ton of "&'PB Scrubber Data Inputs'!C6&" Removed/year" -> Cost Effectiveness = Total Annual Cost/ton of HCl Removed/year
A80: Total Annual Cost (TAC) = | B80: =B75 -> 388876.8503 | C80: ="per year in "&'PB Scrubber Data Inputs'!C63& " dollars" -> per year in 2016 dollars
A81: ='PB Scrubber Data Inputs'!C6&" Removed = " -> HCl Removed = | B81: ='PB Scrubber Design Parameters'!C50 -> 884.1631788 | C81: tons/year
A82: Cost Effectiveness = | B82: =B80/B81 -> 439.8247514 | C82: ="per ton of "&'PB Scrubber Data Inputs'!C6&" removed in "&'PB Scrubber Data Inputs'!C63&" dollars" -> per ton of HCl removed in 2016 dollars

Sheet Appendix
A1: Typical Costs for Random Packing Materials (1991$) | H1: Physical Properties of Common Pollutants
A2: Nominal Diameter (inches) | B2: Construction Material | C2: Packing Type | D2: Packing cost ($/ft3) | H2: Pollutant | I2: Molecular Weight | J2: Diffusivity in Air at 25°C (cm2/sec) | K2: Diffusivity in Water at 20°C (cm2/sec x 105)
D3: <100 ft3 | E3: >100 ft3
A4: 1 | B4: 304 stainless steel | C4: Pall rings, Raschig rings, Ballast rings | D4: 70-109 | E4: 65-99 | H4: Ammonia | I4: 17 | J4: 0.236 | K4: 1.76
A5: 1 | B5: Ceramic | C5: Raschig rings, Berl saddles | D5: 33-44 | E5: 26-36 | H5: Methanol | I5: 32 | J5: 0.159 | K5: 1.28
A6: 1 | B6: Polypropylene | C6: Tri-PakÒ, Pall rings, Ballast rings, Flexisaddles | D6: 14-37 | E6: 1934-12-01 | H6: Ethyl Alcohol | I6: 46 | J6: 0.119 | K6: 1
A7: 2 | B7: Ceramic | C7: Berl saddles, Raschig rings | D7: 13-32 | E7: 2021-10-30 | H7: Propyl Alcohol | I7: 60 | J7: 0.1 | K7: 0.87
A8: 2 | B8: Polypropylene | C8: Tri-PacÒ, LanpacÒ, Flexiring, Flexisaddle TelleretteÒ | D8: 2021-03-20 | E8: 2021-05-19 | H8: Butyl Alcohol | I8: 74 | J8: 0.09 | K8: 0.77
A9: 3.5 | B9: 304 stainless steel | C9: Ballast rings | D9: 30 | E9: 27 | H9: Acetic Acid | I9: 60 | J9: 0.133 | K9: 0.88
A10: 3.5 | B10: Polypropylene | C10: Tri-packÒ, LanpacÒ, Ballast rings | D10: 2021-06-14 | E10: 2021-06-12 | H10: Hydrogen Chloride | I10: 36 | J10: 0.187 | K10: 2.64
H11: Hydrogen Bromide | I11: 36 | J11: 0.129 | K11: 1.93
A12: Typical Packing Factors for Various Packing Materials for Wet Packed Tower Absorbers | H12: Hydrogen Fluoride | I12: 20 | J12: 0.753 | K12: 3.33
A13: Packing Type | B13: Construction Level | C13: Nominal Diameter (inches) | D13: Fp | E13: a
A14: Raschig rings | B14: Ceramic | C14: 0.5 | D14: 640 | E14: 111
C15: 0.625 | D15: 380 | E15: 100
C16: 0.75 | D16: 255 | E16: 80
C17: 1 | D17: 160 | E17: 58
C18: 1.5 | D18: 95 | E18: 38
C19: 2 | D19: 65 | E19: 28
C20: 3 | D20: 37
A21: Raschig rings | B21: Metal | C21: 0.5 | D21: 410 | E21: 118
C22: 0.625 | D22: 290
C23: 0.75 | D23: 230 | E23: 72
C24: 1 | D24: 137 | E24: 57
C25: 1.5 | D25: 83 | E25: 41
C26: 2 | D26: 57 | E26: 31
C27: 3 | D27: 32 | E27: 21
A28: Pall rings | B28: Metal | C28: 0.625 | D28: 70 | E28: 131
C29: 1 | D29: 48 | E29: 66
C30: 1.5 | D30: 28 | E30: 48
C31: 2 | D31: 20 | E31: 36
C32: 3.5 | D32: 16
A33: Pall rings | B33: Polypropylene | C33: 0.625 | D33: 97 | E33: 110
C34: 1 | D34: 52 | E34: 63
C35: 1.5 | D35: 32 | E35: 39
C36: 2 | D36: 25 | E36: 31
A37: Berl saddles | B37: Ceramic | C37: 0.5 | D37: 240 | E37: 142
C38: 0.75 | D38: 170 | E38: 82
C39: 1 | D39: 110 | E39: 76
C40: 1.5 | D40: 65 | E40: 44
C41: 2 | D41: 45 | E41: 32
A42: Intalox saddles | B42: Ceramic | C42: 0.5 | D42: 200 | E42: 190
C43: 0.75 | D43: 145 | E43: 102
C44: 1 | D44: 98 | E44: 78
C45: 1.5 | D45: 52 | E45: 60
C46: 2 | D46: 40 | E46: 36
C47: 3 | D47: 22
A48: Tri-Packs® | B48: Plastic | C48: 2 | D48: 16 | E48: 48
C49: 3.5 | D49: 12 | E49: 38
A51: Packing Constants Used to Estimate HG For Wet Packed Tower Absorbers
A52: Packing Type | B52: Size (inches) | C52: Packing Constants | F52: Applicable Rangea
C53: α | D53: Β | E53: γ | F53: Gsfr | G53: Lsfr
A54: Raschig Rings | B54: 0.625 | C54: 2.32 | D54: 0.45 | E54: 0.47 | F54: 200-500 | G54: 500-1,500
B55: 1 | C55: 7 | D55: 0.39 | E55: 0.58 | F55: 200-800 | G55: 400-500
B56: 1 | C56: 6.41 | D56: 0.32 | E56: 0.51 | F56: 200-600 | G56: 500-4,500
B57: 1.5 | C57: 1.73 | D57: 0.38 | E57: 0.66 | F57: 200-700 | G57: 500-1,500
B58: 1.5 | C58: 2.58 | D58: 0.38 | E58: 0.4 | F58: 200-700 | G58: 1,500-4,500
B59: 2 | C59: 3.82 | D59: 0.41 | E59: 0.45 | F59: 200-800 | G59: 500-4,500
A60: Berl Saddles | B60: 0.5 | C60: 32.4 | D60: 0.3 | E60: 0.74 | F60: 200-700 | G60: 500-1,500
B61: 0.5 | C61: 0.81 | D61: 0.3 | E61: 0.24 | F61: 200-700 | G61: 1,500-4,500
B62: 1 | C62: 1.97 | D62: 0.36 | E62: 0.4 | F62: 200-800 | G62: 400-4,500
B63: 1.5 | C63: 5.05 | D63: 0.32 | E63: 0.45 | F63: 200-1,000 | G63: 400-4,500
A64: Partition Rings | B64: 3 | C64: 640 | D64: 0.58 | E64: 1.06 | F64: 150-900 | G64: 3,000-10,000
A65: LanPac® | B65: 2.3 | C65: 7.6 | D65: 0.33 | E65: -0.48 | F65: 400-3,000 | G65: 500-8,000
A66: Tri-Packs® | B66: 2 | C66: 1.4 | D66: 0.33 | E66: 0.4 | F66: 100-900 | G66: 500-10,000
B67: 3.5 | C67: 1.7 | D67: 0.33 | E67: 0.45 | F67: 100-2,000 | G67: 500-10,000
A68: a Units of lb/hr-ft2
A70: Packing Constants Used to Estimate HL For Wet Packed Tower Absorbers
A71: Packing Type | B71: Size (inches) | C71: Packing Constants | E71: Applicable Rangea
C72: φ | D72: b | E72: Lasfr
A73: Raschig Rings | B73: 0.375 | C73: 0.00182 | D73: 0.46 | E73: 400-15,000
B74: 1 | C74: 0.00357 | D74: 0.35 | E74: 400-15,000
B75: 1.5 | C75: 0.01 | D75: 0.22 | E75: 400-15,000
B76: 2.5 | C76: 0.0111 | D76: 0.22 | E76: 400-15,000
B77: 2 | C77: 0.0125 | D77: 0.22 | E77: 400-15,000
A78: Berl Saddles | B78: 0.5 | C78: 0.00666 | D78: 0.28 | E78: 400-15,000
B79: 1 | C79: 0.00588 | D79: 0.28 | E79: 400-15,000
B80: 1.5 | C80: 0.00625 | D80: 0.28 | E80: 400-15,000
A81: Partition Rings | B81: 3 | C81: 0.0625 | D81: 0.09 | E81: 3,000-14,000
A82: LanPac® | B82: 2.3 | C82: 0.0039 | D82: 0.33 | E82: 500-8,000
B83: 3.5 | C83: 0.0042 | D83: 0.33 | E83: 500-8,000
A84: Tri-Packs® | B84: 2 | C84: 0.0031 | D84: 0.33 | E84: 500-10,000
B85: 3.5 | C85: 0.004 | D85: 0.33 | E85: 500-10,000
A86: a Units of lb/hr-ft2
A89: Packing Constants Used to Estimate Pressure Drop For Wet Packed Tower Absorbers
A90: Packing Type | B90: Construction Material | C90: Nominal Diameter (inches) | D90: c | E90: j
A91: Raschig rings | B91: ceramic | C91: 0.5 | D91: 3.1 | E91: 0.41
C92: 0.75 | D92: 1.34 | E92: 0.26
C93: 1 | D93: 0.97 | E93: 0.25
C94: 1.25 | D94: 0.57 | E94: 0.23
C95: 1.5 | D95: 0.39 | E95: 0.23
C96: 2 | D96: 0.24 | E96: 0.17
A97: Raschig rings | B97: metal | C97: 0.625 | D97: 1.2 | E97: 0.28
C98: 1 | D98: 0.42 | E98: 0.21
C99: 1.5 | D99: 0.29 | E99: 0.2
C100: 2 | D100: 0.23 | E100: 0.135
A101: Pall rings | B101: metal | C101: 0.625 | D101: 0.43 | E101: 0.17
C102: 1 | D102: 0.15 | E102: 0.16
C103: 1.5 | D103: 0.08 | E103: 0.15
C104: 2 | D104: 0.06 | E104: 0.12
A105: Berl saddles | B105: ceramic | C105: 0.5 | D105: 1.2 | E105: 0.21
C106: 0.75 | D106: 0.62 | E106: 0.17
C107: 1 | D107: 0.39 | E107: 0.17
C108: 1.5 | D108: 0.21 | E108: 0.13
A109: Intalox saddles | B109: ceramic | C109: 0.5 | D109: 0.82 | E109: 0.2
C110: 0.75 | D110: 0.28 | E110: 0.16
C111: 1 | D111: 0.31 | E111: 0.16
C112: 1.5 | D112: 0.14 | E112: 0.14
A113: a Units of lb/hr-ft2
